{"text_format":"3","workbook":"xlsx","n_sheets":10,"sheets":["Systeem","SjabloonVoorblad","SjabloonWerkproces","KerntakenEnWerkprocessen","Beheersingsniveaus","Voorblad","B1-K1-W1","B1-K1-W2","B1-K1-W3","B1-K1-W4"],"not_rendered":{"macros":1,"defined_names":19,"comments":6},"read":"whole","date_system":"1900"}

{"sheet":"Systeem","index":0,"n_rows":21,"n_cols":3,"rows_kept":21,"hidden":true}
[]
[null,"Ja/Nee"]
[null,"Ja"]
[null,"Nee"]
[]
[null,"Debug modus"]
[null,0,"Normale bedrijfsstand =  0"]
[]
[null,"Teksten"]
[null,"Werkproces motivatie:","Doe dit volgens richtlijnen van de school. Het is raadzaam om in elk geval een onvoldoende te motiveren.\nBij de motivering kan gebruikgemaakt worden van de beschrijvingen in de beoordelingstabel."]
[]
[null,"Fout markeer opmaak:"]
[]
[]
[null,"\"Grey-out\" opmaak:","greyed out"]
[]
[null,"Copyright tekst:","© Stichting Praktijkleren"]
[]
[null,"Regel afbreken werkprocesnaam:",45]
[]
[null,"Systeem versie:","30g"]

{"sheet":"SjabloonVoorblad","index":1,"n_rows":14,"n_cols":3,"rows_kept":14,"hidden":true,"merged":[[0,0,0,2],[2,0,2,2],[5,1,5,2],[6,1,6,2],[7,1,7,2],[8,1,8,2],[9,1,9,2],[11,1,11,2],[13,1,13,2]]}
["Beoordelingsformulier praktijkexamen"]
[]
["Algemene informatie"]
[]
["Code beoordelingsformulier en vaststellingsdatum",{"$f":"KerntakenEnWerkprocessen!B4","v":"BF_OMSS-BACS-LIHSS-MCS_BS22_B1-K1_1"},{"$f":"KerntakenEnWerkprocessen!B3","v":"[00-00-00]"}]
["Examenvorm",{"$f":"KerntakenEnWerkprocessen!C6","v":"Praktijkexamen - examen in een gesimuleerde omgeving of in de beroepspraktijk"}]
["Examennaam",{"$f":"KerntakenEnWerkprocessen!B7","v":0}]
["Examencode",{"$f":"KerntakenEnWerkprocessen!C7","v":"OMSS-BACS-LIHSS-MCS _BS22_B1-K1_1"}]
["Profiel",{"$f":"KerntakenEnWerkprocessen!B9","v":"P3: Office & Management Support Specialist, niveau 4\nP4: Business Administration & Control Specialist, niveau 4\nP5: Legal, Insurance & HR Services Specialist, niveau 4\nP6: Marketing & Communication Specialist, niveau 4"}]
["Kwalificatiedossier",{"$f":"KerntakenEnWerkprocessen!B8","v":"Business Services"}]
["Cohort en crebocode",{"$f":"KerntakenEnWerkprocessen!C8","v":"2022 en verder"},{"$f":"KerntakenEnWerkprocessen!C9","v":"25728/25725/25726/25727"}]
["Kerntaak",{"$f":"KerntakenEnWerkprocessen!C5","v":"Voert taken uit binnen de zakelijke dienstverlening"}]
[]
["Werkprocessen",{"$f":"KerntakenEnWerkprocessen!F2","v":"B1-K1-W1 Treedt op als aanspreekpunt voor klanten\nB1-K1-W2 Verzorgt zakelijke communicatie\nB1-K1-W3 Verwerkt gegevens\nB1-K1-W4 Werkt aan producten/opdrachten binnen geld-, goederen- en informatiebeweging\n \n \n \n \n \n \n \n \n \n \n \n"}]

{"sheet":"SjabloonWerkproces","index":2,"n_rows":19,"n_cols":4,"rows_kept":19,"hidden":true,"merged":[[9,1,9,6],[10,1,10,6],[12,1,12,6]]}
["Werkproces:",null,{"$f":"VLOOKUP(B1,werkprocessen,2,FALSE)","v":{"$error":"#N/A"}}]
["Eerste opdracht:",{"$f":"VLOOKUP(B1,KerntakenEnWerkprocessen!B13:E27,3,FALSE)","v":{"$error":"#N/A"}}]
["Laatste opdracht:",{"$f":"VLOOKUP(B1,KerntakenEnWerkprocessen!B13:E27,4,FALSE)","v":{"$error":"#N/A"}}]
["PuntentotaalMax",{"$f":"SUM(N:N)","v":0},"Invullen gestart:",{"$f":"IF(SUM(O:O)>0,TRUE,FALSE)","v":false}]
["PuntentotaalBehaald",{"$f":"SUM(M:M)","v":0}]
["#Ant. Mog. <=1",{"$f":"COUNTIF(N:N,1)","v":0}]
["#Ant. Mog. 2-3",{"$f":"COUNTIF(N:N,2)+COUNTIF(N:N,3)","v":0}]
["Cesuur",{"$f":"0.5*B4","v":0}]
[]
[null,{"$f":"CONCATENATE(kerntaakCode,\": \",kerntaakNaam)","v":"B1-K1: Voert taken uit binnen de zakelijke dienstverlening"}]
[null,{"$f":"CONCATENATE(VLOOKUP(B1,werkprocessen,1,FALSE),\": \",C1)","v":{"$error":"#N/A"}}]
[]
[null,"Persoonsinformatie"]
[null,"Datum"]
[null,"Kandidaat"]
[null,"Studentnummer"]
[null,"Klas"]
[null,"Beoordelaar 1"]
[null,"Beoordelaar 2"]

{"sheet":"KerntakenEnWerkprocessen","index":3,"n_rows":29,"n_cols":6,"rows_kept":29,"hidden":true,"merged":[[3,1,3,2]]}
["Kerntaken en werkprocessen"]
[{"$nulls":5},{"$f":"F27","v":"B1-K1-W1 Treedt op als aanspreekpunt voor klanten\nB1-K1-W2 Verzorgt zakelijke communicatie\nB1-K1-W3 Verwerkt gegevens\nB1-K1-W4 Werkt aan producten/opdrachten binnen geld-, goederen- en informatiebeweging\n \n \n \n \n \n \n \n \n \n \n \n"}]
["Vaststellingsdatum","[00-00-00]"]
["Code beoordelingsformulier","BF_OMSS-BACS-LIHSS-MCS_BS22_B1-K1_1"]
["Kerntaak","B1-K1","Voert taken uit binnen de zakelijke dienstverlening"]
["Examenvorm",null,"Praktijkexamen - examen in een gesimuleerde omgeving of in de beroepspraktijk"]
["Examennaam en Examencode",null,"OMSS-BACS-LIHSS-MCS _BS22_B1-K1_1"]
["Kwalificatiedossier en Cohort","Business Services","2022 en verder"]
["Profiel en crebocode","P3: Office & Management Support Specialist, niveau 4\nP4: Business Administration & Control Specialist, niveau 4\nP5: Legal, Insurance & HR Services Specialist, niveau 4\nP6: Marketing & Communication Specialist, niveau 4","25728/25725/25726/25727"]
[]
[]
["Werkprocessen","Code","Naam","EersteOpdracht","LaatsteOpdracht","TekstSamengevoegd"]
[null,"B1-K1-W1","Treedt op als aanspreekpunt voor klanten",{"$f":"MIN(IF(Beheersingsniveaus!$A$4:$A$151=KerntakenEnWerkprocessen!$B13,Beheersingsniveaus!$B$4:$B$151))","v":1},{"$f":"MAX(IF(Beheersingsniveaus!$A$4:$A$151=KerntakenEnWerkprocessen!$B13,Beheersingsniveaus!$B$4:$B$151))","v":1},{"$f":"B13&\" \"&C13&CHAR(10)","v":"B1-K1-W1 Treedt op als aanspreekpunt voor klanten\n"}]
[null,"B1-K1-W2","Verzorgt zakelijke communicatie",{"$f":"MIN(IF(Beheersingsniveaus!$A$4:$A$151=KerntakenEnWerkprocessen!$B14,Beheersingsniveaus!$B$4:$B$151))","v":2},{"$f":"MAX(IF(Beheersingsniveaus!$A$4:$A$151=KerntakenEnWerkprocessen!$B14,Beheersingsniveaus!$B$4:$B$151))","v":2},{"$f":"F13&B14&\" \"&C14&CHAR(10)","v":"B1-K1-W1 Treedt op als aanspreekpunt voor klanten\nB1-K1-W2 Verzorgt zakelijke communicatie\n"}]
[null,"B1-K1-W3","Verwerkt gegevens",{"$f":"MIN(IF(Beheersingsniveaus!$A$4:$A$151=KerntakenEnWerkprocessen!$B15,Beheersingsniveaus!$B$4:$B$151))","v":3},{"$f":"MAX(IF(Beheersingsniveaus!$A$4:$A$151=KerntakenEnWerkprocessen!$B15,Beheersingsniveaus!$B$4:$B$151))","v":3},{"$f":"F14&B15&\" \"&C15&CHAR(10)","v":"B1-K1-W1 Treedt op als aanspreekpunt voor klanten\nB1-K1-W2 Verzorgt zakelijke communicatie\nB1-K1-W3 Verwerkt gegevens\n"}]
[null,"B1-K1-W4","Werkt aan producten/opdrachten binnen geld-, goederen- en informatiebeweging",{"$f":"MIN(IF(Beheersingsniveaus!$A$4:$A$151=KerntakenEnWerkprocessen!$B16,Beheersingsniveaus!$B$4:$B$151))","v":4},{"$f":"MAX(IF(Beheersingsniveaus!$A$4:$A$151=KerntakenEnWerkprocessen!$B16,Beheersingsniveaus!$B$4:$B$151))","v":4},"B1-K1-W1 Treedt op als aanspreekpunt voor klanten\nB1-K1-W2 Verzorgt zakelijke communicatie\nB1-K1-W3 Verwerkt gegevens\nB1-K1-W4 Werkt aan producten/opdrachten binnen geld-, goederen- en informatiebeweging\n"]
[{"$nulls":3},{"$f":"MIN(IF(Beheersingsniveaus!$A$4:$A$151=KerntakenEnWerkprocessen!$B17,Beheersingsniveaus!$B$4:$B$151))","v":0},{"$f":"MAX(IF(Beheersingsniveaus!$A$4:$A$151=KerntakenEnWerkprocessen!$B17,Beheersingsniveaus!$B$4:$B$151))","v":0},"B1-K1-W1 Treedt op als aanspreekpunt voor klanten\nB1-K1-W2 Verzorgt zakelijke communicatie\nB1-K1-W3 Verwerkt gegevens\nB1-K1-W4 Werkt aan producten/opdrachten binnen geld-, goederen- en informatiebeweging\n \n"]
[{"$nulls":3},{"$f":"MIN(IF(Beheersingsniveaus!$A$4:$A$151=KerntakenEnWerkprocessen!$B18,Beheersingsniveaus!$B$4:$B$151))","v":0},{"$f":"MAX(IF(Beheersingsniveaus!$A$4:$A$151=KerntakenEnWerkprocessen!$B18,Beheersingsniveaus!$B$4:$B$151))","v":0},"B1-K1-W1 Treedt op als aanspreekpunt voor klanten\nB1-K1-W2 Verzorgt zakelijke communicatie\nB1-K1-W3 Verwerkt gegevens\nB1-K1-W4 Werkt aan producten/opdrachten binnen geld-, goederen- en informatiebeweging\n \n \n"]
[{"$nulls":3},{"$f":"MIN(IF(Beheersingsniveaus!$A$4:$A$151=KerntakenEnWerkprocessen!$B19,Beheersingsniveaus!$B$4:$B$151))","v":0},{"$f":"MAX(IF(Beheersingsniveaus!$A$4:$A$151=KerntakenEnWerkprocessen!$B19,Beheersingsniveaus!$B$4:$B$151))","v":0},"B1-K1-W1 Treedt op als aanspreekpunt voor klanten\nB1-K1-W2 Verzorgt zakelijke communicatie\nB1-K1-W3 Verwerkt gegevens\nB1-K1-W4 Werkt aan producten/opdrachten binnen geld-, goederen- en informatiebeweging\n \n \n \n"]
[{"$nulls":3},{"$f":"MIN(IF(Beheersingsniveaus!$A$4:$A$151=KerntakenEnWerkprocessen!$B20,Beheersingsniveaus!$B$4:$B$151))","v":0},{"$f":"MAX(IF(Beheersingsniveaus!$A$4:$A$151=KerntakenEnWerkprocessen!$B20,Beheersingsniveaus!$B$4:$B$151))","v":0},"B1-K1-W1 Treedt op als aanspreekpunt voor klanten\nB1-K1-W2 Verzorgt zakelijke communicatie\nB1-K1-W3 Verwerkt gegevens\nB1-K1-W4 Werkt aan producten/opdrachten binnen geld-, goederen- en informatiebeweging\n \n \n \n \n"]
[{"$nulls":3},{"$f":"MIN(IF(Beheersingsniveaus!$A$4:$A$151=KerntakenEnWerkprocessen!$B21,Beheersingsniveaus!$B$4:$B$151))","v":0},{"$f":"MAX(IF(Beheersingsniveaus!$A$4:$A$151=KerntakenEnWerkprocessen!$B21,Beheersingsniveaus!$B$4:$B$151))","v":0},"B1-K1-W1 Treedt op als aanspreekpunt voor klanten\nB1-K1-W2 Verzorgt zakelijke communicatie\nB1-K1-W3 Verwerkt gegevens\nB1-K1-W4 Werkt aan producten/opdrachten binnen geld-, goederen- en informatiebeweging\n \n \n \n \n \n"]
[{"$nulls":3},{"$f":"MIN(IF(Beheersingsniveaus!$A$4:$A$151=KerntakenEnWerkprocessen!$B22,Beheersingsniveaus!$B$4:$B$151))","v":0},{"$f":"MAX(IF(Beheersingsniveaus!$A$4:$A$151=KerntakenEnWerkprocessen!$B22,Beheersingsniveaus!$B$4:$B$151))","v":0},"B1-K1-W1 Treedt op als aanspreekpunt voor klanten\nB1-K1-W2 Verzorgt zakelijke communicatie\nB1-K1-W3 Verwerkt gegevens\nB1-K1-W4 Werkt aan producten/opdrachten binnen geld-, goederen- en informatiebeweging\n \n \n \n \n \n \n"]
[{"$nulls":3},{"$f":"MIN(IF(Beheersingsniveaus!$A$4:$A$151=KerntakenEnWerkprocessen!$B23,Beheersingsniveaus!$B$4:$B$151))","v":0},{"$f":"MAX(IF(Beheersingsniveaus!$A$4:$A$151=KerntakenEnWerkprocessen!$B23,Beheersingsniveaus!$B$4:$B$151))","v":0},{"$f":"F22&B23&\" \"&C23&CHAR(10)","v":"B1-K1-W1 Treedt op als aanspreekpunt voor klanten\nB1-K1-W2 Verzorgt zakelijke communicatie\nB1-K1-W3 Verwerkt gegevens\nB1-K1-W4 Werkt aan producten/opdrachten binnen geld-, goederen- en informatiebeweging\n \n \n \n \n \n \n \n"}]
[{"$nulls":3},{"$f":"MIN(IF(Beheersingsniveaus!$A$4:$A$151=KerntakenEnWerkprocessen!$B24,Beheersingsniveaus!$B$4:$B$151))","v":0},{"$f":"MAX(IF(Beheersingsniveaus!$A$4:$A$151=KerntakenEnWerkprocessen!$B24,Beheersingsniveaus!$B$4:$B$151))","v":0},"B1-K1-W1 Treedt op als aanspreekpunt voor klanten\nB1-K1-W2 Verzorgt zakelijke communicatie\nB1-K1-W3 Verwerkt gegevens\nB1-K1-W4 Werkt aan producten/opdrachten binnen geld-, goederen- en informatiebeweging\n \n \n \n \n \n \n \n \n"]
[{"$nulls":3},{"$f":"MIN(IF(Beheersingsniveaus!$A$4:$A$151=KerntakenEnWerkprocessen!$B25,Beheersingsniveaus!$B$4:$B$151))","v":0},{"$f":"MAX(IF(Beheersingsniveaus!$A$4:$A$151=KerntakenEnWerkprocessen!$B25,Beheersingsniveaus!$B$4:$B$151))","v":0},"B1-K1-W1 Treedt op als aanspreekpunt voor klanten\nB1-K1-W2 Verzorgt zakelijke communicatie\nB1-K1-W3 Verwerkt gegevens\nB1-K1-W4 Werkt aan producten/opdrachten binnen geld-, goederen- en informatiebeweging\n \n \n \n \n \n \n \n \n \n"]
[{"$nulls":3},{"$f":"MIN(IF(Beheersingsniveaus!$A$4:$A$151=KerntakenEnWerkprocessen!$B26,Beheersingsniveaus!$B$4:$B$151))","v":0},{"$f":"MAX(IF(Beheersingsniveaus!$A$4:$A$151=KerntakenEnWerkprocessen!$B26,Beheersingsniveaus!$B$4:$B$151))","v":0},"B1-K1-W1 Treedt op als aanspreekpunt voor klanten\nB1-K1-W2 Verzorgt zakelijke communicatie\nB1-K1-W3 Verwerkt gegevens\nB1-K1-W4 Werkt aan producten/opdrachten binnen geld-, goederen- en informatiebeweging\n \n \n \n \n \n \n \n \n \n \n"]
[{"$nulls":3},{"$f":"MIN(IF(Beheersingsniveaus!$A$4:$A$151=KerntakenEnWerkprocessen!$B27,Beheersingsniveaus!$B$4:$B$151))","v":0},{"$f":"MAX(IF(Beheersingsniveaus!$A$4:$A$151=KerntakenEnWerkprocessen!$B27,Beheersingsniveaus!$B$4:$B$151))","v":0},"B1-K1-W1 Treedt op als aanspreekpunt voor klanten\nB1-K1-W2 Verzorgt zakelijke communicatie\nB1-K1-W3 Verwerkt gegevens\nB1-K1-W4 Werkt aan producten/opdrachten binnen geld-, goederen- en informatiebeweging\n \n \n \n \n \n \n \n \n \n \n \n"]
[]
["Handtekening kandidaat tonen:",null,null,false]

{"sheet":"Beheersingsniveaus","index":4,"n_rows":151,"n_cols":11,"rows_kept":151,"hidden":true}
["Beschrijvingen beheersingsniveaus"]
[]
["Werkproces","Opdracht","OpdrachtId","CriteriumId","Taken","Criterium","Beheersingsniveau 0","Beheersingsniveau 1","Beheersingsniveau 2","Beheersingsniveau 3","Cruciaal"]
["B1-K1-W1",1,{"$f":"IF(A4<>\"\",CONCATENATE(A4,\"-\",B4),\"\")","v":"B1-K1-W1-1"},{"$f":"IF(C4<>\"\",CONCATENATE(C4,\"-\",\"1\"),\"\")","v":"B1-K1-W1-1-1"},"T1, T2, T4, T5","Klantvriendelijk-heid","De kandidaat heeft de klant/bezoeker niet vriendelijk en correct te woord gestaan.","De kandidaat heeft de klant/bezoeker enigszins vriendelijk en correct te woord gestaan.","De kandidaat heeft de klant/bezoeker grotendeels vriendelijk en correct te woord gestaan.","De kandidaat heeft de klant/bezoeker volledig vriendelijk en correct te woord gestaan."]
["B1-K1-W1",1,{"$f":"IF(A5<>\"\",CONCATENATE(A5,\"-\",B5),\"\")","v":"B1-K1-W1-1"},{"$f":"IF(C5<>\"\",CONCATENATE(C5,\"-\",COUNTIF($C$4:C5,C5),\"\"),\"\")","v":"B1-K1-W1-1-2"},"T2","Klantvraag of klacht achterhalen","De klantgegevens en klantvraag of klacht zijn niet in kaart gebracht.","De klantgegevens en klantvraag of klacht zijn enigszins in kaart gebracht.","De klantgegevens en klantvraag of klacht zijn grotendeels in kaart gebracht.","De klantgegevens en klantvraag of klacht zijn volledig in kaart gebracht."]
["B1-K1-W1",1,"B1-K1-W1-1",{"$f":"IF(C6<>\"\",CONCATENATE(C6,\"-\",COUNTIF($C$4:C6,C6),\"\"),\"\")","v":"B1-K1-W1-1-3"},"T3, T4","Bevoegdheden en procedure","De kandidaat heeft niet overeenkomstig zijn bevoegdheden of de procedure gehandeld.","De kandidaat heeft enigszins overeenkomstig zijn bevoegdheden en de procedure gehandeld.","De kandidaat heeft grotendeels overeenkomstig zijn bevoegdheden en de procedure gehandeld.","De kandidaat heeft volledig overeenkomstig zijn bevoegdheden en de procedure gehandeld."]
["B1-K1-W1",1,"B1-K1-W1-1",{"$f":"IF(C7<>\"\",CONCATENATE(C7,\"-\",COUNTIF($C$4:C7,C7),\"\"),\"\")","v":"B1-K1-W1-1-4"},"T3, T4","Informeren en doorverwijzen","De bezoeker/klant is onjuist of op niet begrijpelijke wijze geïnformeerd, geadviseerd of doorverwezen. ","De bezoeker/klant is enigszins juist en op enigszins begrijpelijke wijze geïnformeerd, geadviseerd of doorverwezen.","De bezoeker/klant is grotendeels juist en op grotendeels begrijpelijke wijze geïnformeerd, geadviseerd of doorverwezen.","De bezoeker/klant is volledig juist en op volledig begrijpelijke wijze geïnformeerd, geadviseerd of doorverwezen."]
["B1-K1-W1",1,"B1-K1-W1-1",{"$f":"IF(C8<>\"\",CONCATENATE(C8,\"-\",COUNTIF($C$4:C8,C8),\"\"),\"\")","v":"B1-K1-W1-1-5"},"T5","Vastleggen","Het klantcontact is onjuist vastgelegd.","Het klantcontact is enigszins juist vastgelegd.","Het klantcontact is grotendeels juist vastgelegd.","Het klantcontact is volledig juist vastgelegd."]
["B1-K1-W1",1,"B1-K1-W1-1",{"$f":"IF(C9<>\"\",CONCATENATE(C9,\"-\",COUNTIF($C$4:C9,C9),\"\"),\"\")","v":"B1-K1-W1-1-6"},"T5","Klantrelatie","De klantrelatie is niet opgebouwd of onderhouden.","De klantrelatie is enigszins opgebouwd of onderhouden.","De klantrelatie is grotendeels opgebouwd of onderhouden.","De klantrelatie is volledig opgebouwd of onderhouden."]
["B1-K1-W2",2,"B1-K1-W2-2",{"$f":"IF(C10<>\"\",CONCATENATE(C10,\"-\",COUNTIF($C$4:C10,C10),\"\"),\"\")","v":"B1-K1-W2-2-1"},"T1, T2","Gegevens verzamelen en controleren ","De benodigde gegevens zijn onjuist of niet volledig verzameld of niet gecontroleerd.","De benodigde gegevens zijn enigszins juist en enigszins volledig verzameld en gecontroleerd. ","De benodigde gegevens zijn grotendeels juist en grotendeels volledig verzameld en gecontroleerd.","De benodigde gegevens zijn volledig juist en volledig verzameld en gecontroleerd."]
["B1-K1-W2",2,"B1-K1-W2-2",{"$f":"IF(C11<>\"\",CONCATENATE(C11,\"-\",COUNTIF($C$4:C11,C11),\"\"),\"\")","v":"B1-K1-W2-2-2"},"T3","Inhoud","De inhoud van het bericht is onjuist overgebracht.","De inhoud van het bericht is enigszins juist overgebracht.","De inhoud van het bericht is grotendeels juist overgebracht.","De inhoud van het bericht is volledig juist overgebracht."]
["B1-K1-W2",2,"B1-K1-W2-2",{"$f":"IF(C12<>\"\",CONCATENATE(C12,\"-\",COUNTIF($C$4:C12,C12),\"\"),\"\")","v":"B1-K1-W2-2-3"},"T3","Communicatie","De communicatie is niet afgestemd op de ontvanger(s).","De communicatie is enigszins afgestemd op de ontvanger(s). ","De communicatie is grotendeels afgestemd op de ontvanger(s).","De communicatie is volledig afgestemd op de ontvanger(s)."]
["B1-K1-W2",2,"B1-K1-W2-2",{"$f":"IF(C13<>\"\",CONCATENATE(C13,\"-\",COUNTIF($C$4:C13,C13),\"\"),\"\")","v":"B1-K1-W2-2-4"},"T3","Taalgebruik ","Het taalgebruik is niet correct.","Het taalgebruik is enigszins correct.","Het taalgebruik is grotendeels correct.","Het taalgebruik is volledig correct."]
["B1-K1-W2",2,"B1-K1-W2-2",{"$f":"IF(C14<>\"\",CONCATENATE(C14,\"-\",COUNTIF($C$4:C14,C14),\"\"),\"\")","v":"B1-K1-W2-2-5"},"T4","Voortgang en afhandeling","De voortgang en afhandeling van de correspondentie is niet of niet juist bewaakt.","De voortgang en afhandeling van de correspondentie is juist bewaakt."]
["B1-K1-W3",3,"B1-K1-W3-3",{"$f":"IF(C15<>\"\",CONCATENATE(C15,\"-\",COUNTIF($C$4:C15,C15),\"\"),\"\")","v":"B1-K1-W3-3-1"},"T1","Gegevens invoeren en/of wijzigen","De gegevens zijn onjuist ingevoerd en/of gewijzigd.","De gegevens zijn volledig juist ingevoerd en/of gewijzigd."]
["B1-K1-W3",3,"B1-K1-W3-3",{"$f":"IF(C16<>\"\",CONCATENATE(C16,\"-\",COUNTIF($C$4:C16,C16),\"\"),\"\")","v":"B1-K1-W3-3-2"},"T2","Controle en rapportage","Controle en rapportage zijn niet juist.","Controle en rapportage zijn enigszins juist.","Controle en rapportage zijn grotendeels juist.","Controle en rapportage zijn volledig juist."]
["B1-K1-W3",3,"B1-K1-W3-3",{"$f":"IF(C17<>\"\",CONCATENATE(C17,\"-\",COUNTIF($C$4:C17,C17),\"\"),\"\")","v":"B1-K1-W3-3-3"},"T3","Invullen","De (standaard) documenten zijn niet juist ingevuld.","De (standaard) documenten zijn juist ingevuld."]
["B1-K1-W3",3,"B1-K1-W3-3",{"$f":"IF(C18<>\"\",CONCATENATE(C18,\"-\",COUNTIF($C$4:C18,C18),\"\"),\"\")","v":"B1-K1-W3-3-4"},"T3","Archiveren ","De gebruikte documenten zijn niet op de juiste wijze gearchiveerd.","De gebruikte documenten zijn op de juiste wijze gearchiveerd."]
["B1-K1-W3",3,"B1-K1-W3-3",{"$f":"IF(C19<>\"\",CONCATENATE(C19,\"-\",COUNTIF($C$4:C19,C19),\"\"),\"\")","v":"B1-K1-W3-3-5"},"T3","Richtlijnen veiligheid en communicatie","Er is niet in overeenstemming met richtlijnen en wetgeving gehandeld. ","Er is in overeenstemming met richtlijnen en wetgeving gehandeld."]
["B1-K1-W3",3,"B1-K1-W3-3",{"$f":"IF(C20<>\"\",CONCATENATE(C20,\"-\",COUNTIF($C$4:C20,C20),\"\"),\"\")","v":"B1-K1-W3-3-6"},"T4","Management-informatie leveren ","De rapportage voor het management bevat niet de gevraagde informatie.","De rapportage voor het management bevat enigszins de gevraagde informatie.","De rapportage voor het management bevat grotendeels de gevraagde informatie.","De rapportage voor het management bevat volledig de gevraagde informatie."]
["B1-K1-W3",3,"B1-K1-W3-3",{"$f":"IF(C21<>\"\",CONCATENATE(C21,\"-\",COUNTIF($C$4:C21,C21),\"\"),\"\")","v":"B1-K1-W3-3-7"},"T5","Analyseren gegevens ","De gegevens zijn niet juist geanalyseerd","De gegevens zijn enigszins juist geanalyseerd","De gegevens zijn grotendeels juist geanalyseerd.  ","De gegevens zijn volledig  juist geanalyseerd.  "]
["B1-K1-W3",3,"B1-K1-W3-3",{"$f":"IF(C22<>\"\",CONCATENATE(C22,\"-\",COUNTIF($C$4:C22,C22),\"\"),\"\")","v":"B1-K1-W3-3-8"},"T5","Rapportage  ","De opgestelde rapportage is niet juist.","De opgestelde rapportage is enigszins juist.","De opgestelde rapportage is grotendeels juist.","De opgestelde rapportage is volledig juist."]
["B1-K1-W4",4,"B1-K1-W4-4",{"$f":"IF(C23<>\"\",CONCATENATE(C23,\"-\",COUNTIF($C$4:C23,C23),\"\"),\"\")","v":"B1-K1-W4-4-1"},"T1,T2,T3,T4","Samenwerking","Samenwerking met anderen ontbreekt.","Samenwerking met anderen is minimaal.","Samenwerking met anderen is voldoende.","Samenwerking met anderen is optimaal."]
["B1-K1-W4",4,"B1-K1-W4-4",{"$f":"IF(C24<>\"\",CONCATENATE(C24,\"-\",COUNTIF($C$4:C24,C24),\"\"),\"\")","v":"B1-K1-W4-4-2"},"T1","Verzamelde informatie ","Te weinig benodigde informatie is aanwezig\nen/of \nte weinig verzamelde informatie is relevant voor de opdracht.","Bijna alle benodigde informatie is aanwezig.\n \nNiet alle verzamelde informatie is relevant voor de opdracht.","Bijna alle benodigde informatie is aanwezig.\n\nAlle verzamelde informatie is relevant voor de opdracht.","Alle benodigde informatie is aanwezig.\n \nAlle verzamelde informatie is relevant voor de opdracht."]
["B1-K1-W4",4,"B1-K1-W4-4",{"$f":"IF(C25<>\"\",CONCATENATE(C25,\"-\",COUNTIF($C$4:C25,C25),\"\"),\"\")","v":"B1-K1-W4-4-3"},"T2","Inhoud operationeel plan ","De inhoud van het operationeel plan heeft geen betrekking op de opdracht\nen/of \nis onvolledig en niet onderbouwd.","De inhoud van het operationeel plan heeft betrekking op de opdracht \nen \nis deels volledig en onderbouwd.","De inhoud van het operationeel plan heeft betrekking op de opdracht \nen \nis grotendeels volledig en onderbouwd.","De inhoud van het operationeel plan heeft betrekking op de opdracht \nen \nis volledig en onderbouwd."]
["B1-K1-W4",4,"B1-K1-W4-4",{"$f":"IF(C26<>\"\",CONCATENATE(C26,\"-\",COUNTIF($C$4:C26,C26),\"\"),\"\")","v":"B1-K1-W4-4-4"},"T3","Doelen","De doelen zijn onvoldoende geformuleerd.","De doelen zijn enigszins juist\ngeformuleerd.","De doelen zijn grotendeels juist geformuleerd.","De doelen zijn volledig juist geformuleerd."]
["B1-K1-W4",4,"B1-K1-W4-4",{"$f":"IF(C27<>\"\",CONCATENATE(C27,\"-\",COUNTIF($C$4:C27,C27),\"\"),\"\")","v":"B1-K1-W4-4-5"},"T3","Budgetteren","Het budget is niet conform de opdracht opgesteld.","Het budget is enigszins conform de opdracht opgesteld.","Het budget is grotendeels conform de opdracht opgesteld.","Het budget is volledig conform de opdracht opgesteld."]
["B1-K1-W4",4,"B1-K1-W4-4",{"$f":"IF(C28<>\"\",CONCATENATE(C28,\"-\",COUNTIF($C$4:C28,C28),\"\"),\"\")","v":"B1-K1-W4-4-6"},"T4","Presentatie ","De presentatie is niet afgestemd op het doel en de doelgroep en is niet in correct Nederlands.","De presentatie is enigszins afgestemd op het doel en de doelgroep en enigszins in correct Nederlands.","De presentatie is grotendeels afgestemd op het doel en de doelgroep en grotendeels in correct Nederlands.","De presentatie is volledig afgestemd op het doel en de doelgroep en volledig in correct Nederlands."]
["B1-K1-W4",4,"B1-K1-W4-4",{"$f":"IF(C29<>\"\",CONCATENATE(C29,\"-\",COUNTIF($C$4:C29,C29),\"\"),\"\")","v":"B1-K1-W4-4-7"},"T4","Planning en organisatie ","De planning en organisatie van werkzaamheden, overleggen en activiteiten is niet conform de opdracht\nen/of onnauwkeurig.","De planning en organisatie van \nwerkzaamheden,\noverleggen en activiteiten is conform de opdracht en enigszins nauwkeurig. ","De planning en organisatie van \nwerkzaamheden, overleggen en \nactiviteiten is conform opdracht en grotendeels nauwkeurig.","De planning en organisatie van werkzaamheden, \noverleggen en activiteiten is conform opdracht en volledig nauwkeurig."]
[null,null,"",{"$f":"IF(C30<>\"\",CONCATENATE(C30,\"-\",COUNTIF($C$4:C30,C30),\"\"),\"\")","v":""}]
[null,null,"",{"$f":"IF(C31<>\"\",CONCATENATE(C31,\"-\",COUNTIF($C$4:C31,C31),\"\"),\"\")","v":""}]
[null,null,"",{"$f":"IF(C32<>\"\",CONCATENATE(C32,\"-\",COUNTIF($C$4:C32,C32),\"\"),\"\")","v":""}]
[null,null,"",{"$f":"IF(C33<>\"\",CONCATENATE(C33,\"-\",COUNTIF($C$4:C33,C33),\"\"),\"\")","v":""}]
[null,null,"",{"$f":"IF(C34<>\"\",CONCATENATE(C34,\"-\",COUNTIF($C$4:C34,C34),\"\"),\"\")","v":""}]
[null,null,"",{"$f":"IF(C35<>\"\",CONCATENATE(C35,\"-\",COUNTIF($C$4:C35,C35),\"\"),\"\")","v":""}]
[null,null,"",{"$f":"IF(C36<>\"\",CONCATENATE(C36,\"-\",COUNTIF($C$4:C36,C36),\"\"),\"\")","v":""}]
[null,null,"",{"$f":"IF(C37<>\"\",CONCATENATE(C37,\"-\",COUNTIF($C$4:C37,C37),\"\"),\"\")","v":""}]
[null,null,"",{"$f":"IF(C38<>\"\",CONCATENATE(C38,\"-\",COUNTIF($C$4:C38,C38),\"\"),\"\")","v":""}]
[null,null,"",{"$f":"IF(C39<>\"\",CONCATENATE(C39,\"-\",COUNTIF($C$4:C39,C39),\"\"),\"\")","v":""}]
[null,null,"",{"$f":"IF(C40<>\"\",CONCATENATE(C40,\"-\",COUNTIF($C$4:C40,C40),\"\"),\"\")","v":""}]
[null,null,"",{"$f":"IF(C41<>\"\",CONCATENATE(C41,\"-\",COUNTIF($C$4:C41,C41),\"\"),\"\")","v":""}]
[null,null,"",{"$f":"IF(C42<>\"\",CONCATENATE(C42,\"-\",COUNTIF($C$4:C42,C42),\"\"),\"\")","v":""}]
[null,null,"",{"$f":"IF(C43<>\"\",CONCATENATE(C43,\"-\",COUNTIF($C$4:C43,C43),\"\"),\"\")","v":""}]
[null,null,"",{"$f":"IF(C44<>\"\",CONCATENATE(C44,\"-\",COUNTIF($C$4:C44,C44),\"\"),\"\")","v":""}]
[null,null,"",{"$f":"IF(C45<>\"\",CONCATENATE(C45,\"-\",COUNTIF($C$4:C45,C45),\"\"),\"\")","v":""}]
[null,null,"",{"$f":"IF(C46<>\"\",CONCATENATE(C46,\"-\",COUNTIF($C$4:C46,C46),\"\"),\"\")","v":""}]
[null,null,"",{"$f":"IF(C47<>\"\",CONCATENATE(C47,\"-\",COUNTIF($C$4:C47,C47),\"\"),\"\")","v":""}]
[null,null,"",{"$f":"IF(C48<>\"\",CONCATENATE(C48,\"-\",COUNTIF($C$4:C48,C48),\"\"),\"\")","v":""}]
[null,null,"",{"$f":"IF(C49<>\"\",CONCATENATE(C49,\"-\",COUNTIF($C$4:C49,C49),\"\"),\"\")","v":""}]
[null,null,"",{"$f":"IF(C50<>\"\",CONCATENATE(C50,\"-\",COUNTIF($C$4:C50,C50),\"\"),\"\")","v":""}]
[null,null,"",{"$f":"IF(C51<>\"\",CONCATENATE(C51,\"-\",COUNTIF($C$4:C51,C51),\"\"),\"\")","v":""}]
[null,null,"",{"$f":"IF(C52<>\"\",CONCATENATE(C52,\"-\",COUNTIF($C$4:C52,C52),\"\"),\"\")","v":""}]
[null,null,"",{"$f":"IF(C53<>\"\",CONCATENATE(C53,\"-\",COUNTIF($C$4:C53,C53),\"\"),\"\")","v":""}]
[null,null,"",{"$f":"IF(C54<>\"\",CONCATENATE(C54,\"-\",COUNTIF($C$4:C54,C54),\"\"),\"\")","v":""}]
[null,null,"",{"$f":"IF(C55<>\"\",CONCATENATE(C55,\"-\",COUNTIF($C$4:C55,C55),\"\"),\"\")","v":""}]
[null,null,"",{"$f":"IF(C56<>\"\",CONCATENATE(C56,\"-\",COUNTIF($C$4:C56,C56),\"\"),\"\")","v":""}]
[null,null,"",{"$f":"IF(C57<>\"\",CONCATENATE(C57,\"-\",COUNTIF($C$4:C57,C57),\"\"),\"\")","v":""}]
[null,null,"",{"$f":"IF(C58<>\"\",CONCATENATE(C58,\"-\",COUNTIF($C$4:C58,C58),\"\"),\"\")","v":""}]
[null,null,"",{"$f":"IF(C59<>\"\",CONCATENATE(C59,\"-\",COUNTIF($C$4:C59,C59),\"\"),\"\")","v":""}]
[null,null,"",{"$f":"IF(C60<>\"\",CONCATENATE(C60,\"-\",COUNTIF($C$4:C60,C60),\"\"),\"\")","v":""}]
[null,null,"",{"$f":"IF(C61<>\"\",CONCATENATE(C61,\"-\",COUNTIF($C$4:C61,C61),\"\"),\"\")","v":""}]
[null,null,"",{"$f":"IF(C62<>\"\",CONCATENATE(C62,\"-\",COUNTIF($C$4:C62,C62),\"\"),\"\")","v":""}]
[null,null,"",{"$f":"IF(C63<>\"\",CONCATENATE(C63,\"-\",COUNTIF($C$4:C63,C63),\"\"),\"\")","v":""}]
[null,null,"",{"$f":"IF(C64<>\"\",CONCATENATE(C64,\"-\",COUNTIF($C$4:C64,C64),\"\"),\"\")","v":""}]
[null,null,"",{"$f":"IF(C65<>\"\",CONCATENATE(C65,\"-\",COUNTIF($C$4:C65,C65),\"\"),\"\")","v":""}]
[null,null,{"$f":"IF(A66<>\"\",CONCATENATE(A66,\"-\",B66),\"\")","v":""},{"$f":"IF(C66<>\"\",CONCATENATE(C66,\"-\",COUNTIF($C$4:C66,C66),\"\"),\"\")","v":""}]
[null,null,"",{"$f":"IF(C67<>\"\",CONCATENATE(C67,\"-\",COUNTIF($C$4:C67,C67),\"\"),\"\")","v":""}]
[null,null,"",{"$f":"IF(C68<>\"\",CONCATENATE(C68,\"-\",COUNTIF($C$4:C68,C68),\"\"),\"\")","v":""}]
[null,null,"",{"$f":"IF(C69<>\"\",CONCATENATE(C69,\"-\",COUNTIF($C$4:C69,C69),\"\"),\"\")","v":""}]
[null,null,"",{"$f":"IF(C70<>\"\",CONCATENATE(C70,\"-\",COUNTIF($C$4:C70,C70),\"\"),\"\")","v":""}]
[null,null,"",{"$f":"IF(C71<>\"\",CONCATENATE(C71,\"-\",COUNTIF($C$4:C71,C71),\"\"),\"\")","v":""}]
[null,null,"",{"$f":"IF(C72<>\"\",CONCATENATE(C72,\"-\",COUNTIF($C$4:C72,C72),\"\"),\"\")","v":""}]
[null,null,"",{"$f":"IF(C73<>\"\",CONCATENATE(C73,\"-\",COUNTIF($C$4:C73,C73),\"\"),\"\")","v":""}]
[null,null,"",{"$f":"IF(C74<>\"\",CONCATENATE(C74,\"-\",COUNTIF($C$4:C74,C74),\"\"),\"\")","v":""}]
[null,null,"",{"$f":"IF(C75<>\"\",CONCATENATE(C75,\"-\",COUNTIF($C$4:C75,C75),\"\"),\"\")","v":""}]
[null,null,"",{"$f":"IF(C76<>\"\",CONCATENATE(C76,\"-\",COUNTIF($C$4:C76,C76),\"\"),\"\")","v":""}]
[null,null,"",{"$f":"IF(C77<>\"\",CONCATENATE(C77,\"-\",COUNTIF($C$4:C77,C77),\"\"),\"\")","v":""}]
[null,null,"",{"$f":"IF(C78<>\"\",CONCATENATE(C78,\"-\",COUNTIF($C$4:C78,C78),\"\"),\"\")","v":""}]
[null,null,"",{"$f":"IF(C79<>\"\",CONCATENATE(C79,\"-\",COUNTIF($C$4:C79,C79),\"\"),\"\")","v":""}]
[null,null,"",{"$f":"IF(C80<>\"\",CONCATENATE(C80,\"-\",COUNTIF($C$4:C80,C80),\"\"),\"\")","v":""}]
[null,null,"",{"$f":"IF(C81<>\"\",CONCATENATE(C81,\"-\",COUNTIF($C$4:C81,C81),\"\"),\"\")","v":""}]
[null,null,"",{"$f":"IF(C82<>\"\",CONCATENATE(C82,\"-\",COUNTIF($C$4:C82,C82),\"\"),\"\")","v":""}]
[null,null,"",{"$f":"IF(C83<>\"\",CONCATENATE(C83,\"-\",COUNTIF($C$4:C83,C83),\"\"),\"\")","v":""}]
[null,null,"",{"$f":"IF(C84<>\"\",CONCATENATE(C84,\"-\",COUNTIF($C$4:C84,C84),\"\"),\"\")","v":""}]
[null,null,"",{"$f":"IF(C85<>\"\",CONCATENATE(C85,\"-\",COUNTIF($C$4:C85,C85),\"\"),\"\")","v":""}]
[null,null,"",{"$f":"IF(C86<>\"\",CONCATENATE(C86,\"-\",COUNTIF($C$4:C86,C86),\"\"),\"\")","v":""}]
[null,null,"",{"$f":"IF(C87<>\"\",CONCATENATE(C87,\"-\",COUNTIF($C$4:C87,C87),\"\"),\"\")","v":""}]
[null,null,"",{"$f":"IF(C88<>\"\",CONCATENATE(C88,\"-\",COUNTIF($C$4:C88,C88),\"\"),\"\")","v":""}]
[null,null,"",{"$f":"IF(C89<>\"\",CONCATENATE(C89,\"-\",COUNTIF($C$4:C89,C89),\"\"),\"\")","v":""}]
[null,null,"",{"$f":"IF(C90<>\"\",CONCATENATE(C90,\"-\",COUNTIF($C$4:C90,C90),\"\"),\"\")","v":""}]
[null,null,"",{"$f":"IF(C91<>\"\",CONCATENATE(C91,\"-\",COUNTIF($C$4:C91,C91),\"\"),\"\")","v":""}]
[null,null,"",{"$f":"IF(C92<>\"\",CONCATENATE(C92,\"-\",COUNTIF($C$4:C92,C92),\"\"),\"\")","v":""}]
[null,null,"",{"$f":"IF(C93<>\"\",CONCATENATE(C93,\"-\",COUNTIF($C$4:C93,C93),\"\"),\"\")","v":""}]
[null,null,"",{"$f":"IF(C94<>\"\",CONCATENATE(C94,\"-\",COUNTIF($C$4:C94,C94),\"\"),\"\")","v":""}]
[null,null,"",{"$f":"IF(C95<>\"\",CONCATENATE(C95,\"-\",COUNTIF($C$4:C95,C95),\"\"),\"\")","v":""}]
[null,null,"",{"$f":"IF(C96<>\"\",CONCATENATE(C96,\"-\",COUNTIF($C$4:C96,C96),\"\"),\"\")","v":""}]
[null,null,"",{"$f":"IF(C97<>\"\",CONCATENATE(C97,\"-\",COUNTIF($C$4:C97,C97),\"\"),\"\")","v":""}]
[null,null,"",{"$f":"IF(C98<>\"\",CONCATENATE(C98,\"-\",COUNTIF($C$4:C98,C98),\"\"),\"\")","v":""}]
[null,null,"",{"$f":"IF(C99<>\"\",CONCATENATE(C99,\"-\",COUNTIF($C$4:C99,C99),\"\"),\"\")","v":""}]
[null,null,"",{"$f":"IF(C100<>\"\",CONCATENATE(C100,\"-\",COUNTIF($C$4:C100,C100),\"\"),\"\")","v":""}]
[null,null,"",{"$f":"IF(C101<>\"\",CONCATENATE(C101,\"-\",COUNTIF($C$4:C101,C101),\"\"),\"\")","v":""}]
[null,null,{"$f":"IF(A102<>\"\",CONCATENATE(A102,\"-\",B102),\"\")","v":""},{"$f":"IF(C102<>\"\",CONCATENATE(C102,\"-\",COUNTIF($C$4:C102,C102),\"\"),\"\")","v":""}]
[null,null,"",{"$f":"IF(C103<>\"\",CONCATENATE(C103,\"-\",COUNTIF($C$4:C103,C103),\"\"),\"\")","v":""}]
[null,null,"",{"$f":"IF(C104<>\"\",CONCATENATE(C104,\"-\",COUNTIF($C$4:C104,C104),\"\"),\"\")","v":""}]
[null,null,"",{"$f":"IF(C105<>\"\",CONCATENATE(C105,\"-\",COUNTIF($C$4:C105,C105),\"\"),\"\")","v":""}]
[null,null,"",{"$f":"IF(C106<>\"\",CONCATENATE(C106,\"-\",COUNTIF($C$4:C106,C106),\"\"),\"\")","v":""}]
[null,null,{"$f":"IF(A107<>\"\",CONCATENATE(A107,\"-\",B107),\"\")","v":""},{"$f":"IF(C107<>\"\",CONCATENATE(C107,\"-\",COUNTIF($C$4:C107,C107),\"\"),\"\")","v":""}]
[null,null,"",{"$f":"IF(C108<>\"\",CONCATENATE(C108,\"-\",COUNTIF($C$4:C108,C108),\"\"),\"\")","v":""}]
[null,null,"",{"$f":"IF(C109<>\"\",CONCATENATE(C109,\"-\",COUNTIF($C$4:C109,C109),\"\"),\"\")","v":""}]
[null,null,"",{"$f":"IF(C110<>\"\",CONCATENATE(C110,\"-\",COUNTIF($C$4:C110,C110),\"\"),\"\")","v":""}]
[null,null,"",{"$f":"IF(C111<>\"\",CONCATENATE(C111,\"-\",COUNTIF($C$4:C111,C111),\"\"),\"\")","v":""}]
[null,null,"",{"$f":"IF(C112<>\"\",CONCATENATE(C112,\"-\",COUNTIF($C$4:C112,C112),\"\"),\"\")","v":""}]
[null,null,"",{"$f":"IF(C113<>\"\",CONCATENATE(C113,\"-\",COUNTIF($C$4:C113,C113),\"\"),\"\")","v":""}]
[null,null,"",{"$f":"IF(C114<>\"\",CONCATENATE(C114,\"-\",COUNTIF($C$4:C114,C114),\"\"),\"\")","v":""}]
[null,null,"",{"$f":"IF(C115<>\"\",CONCATENATE(C115,\"-\",COUNTIF($C$4:C115,C115),\"\"),\"\")","v":""}]
[null,null,"",{"$f":"IF(C116<>\"\",CONCATENATE(C116,\"-\",COUNTIF($C$4:C116,C116),\"\"),\"\")","v":""}]
[null,null,"",{"$f":"IF(C117<>\"\",CONCATENATE(C117,\"-\",COUNTIF($C$4:C117,C117),\"\"),\"\")","v":""}]
[null,null,"",{"$f":"IF(C118<>\"\",CONCATENATE(C118,\"-\",COUNTIF($C$4:C118,C118),\"\"),\"\")","v":""}]
[null,null,"",{"$f":"IF(C119<>\"\",CONCATENATE(C119,\"-\",COUNTIF($C$4:C119,C119),\"\"),\"\")","v":""}]
[null,null,"",{"$f":"IF(C120<>\"\",CONCATENATE(C120,\"-\",COUNTIF($C$4:C120,C120),\"\"),\"\")","v":""}]
[null,null,"",{"$f":"IF(C121<>\"\",CONCATENATE(C121,\"-\",COUNTIF($C$4:C121,C121),\"\"),\"\")","v":""}]
[null,null,"",{"$f":"IF(C122<>\"\",CONCATENATE(C122,\"-\",COUNTIF($C$4:C122,C122),\"\"),\"\")","v":""}]
[null,null,"",{"$f":"IF(C123<>\"\",CONCATENATE(C123,\"-\",COUNTIF($C$4:C123,C123),\"\"),\"\")","v":""}]
[null,null,"",{"$f":"IF(C124<>\"\",CONCATENATE(C124,\"-\",COUNTIF($C$4:C124,C124),\"\"),\"\")","v":""}]
[null,null,"",{"$f":"IF(C125<>\"\",CONCATENATE(C125,\"-\",COUNTIF($C$4:C125,C125),\"\"),\"\")","v":""}]
[null,null,"",{"$f":"IF(C126<>\"\",CONCATENATE(C126,\"-\",COUNTIF($C$4:C126,C126),\"\"),\"\")","v":""}]
[null,null,"",{"$f":"IF(C127<>\"\",CONCATENATE(C127,\"-\",COUNTIF($C$4:C127,C127),\"\"),\"\")","v":""}]
[null,null,"",{"$f":"IF(C128<>\"\",CONCATENATE(C128,\"-\",COUNTIF($C$4:C128,C128),\"\"),\"\")","v":""}]
[null,null,"",{"$f":"IF(C129<>\"\",CONCATENATE(C129,\"-\",COUNTIF($C$4:C129,C129),\"\"),\"\")","v":""}]
[null,null,"",{"$f":"IF(C130<>\"\",CONCATENATE(C130,\"-\",COUNTIF($C$4:C130,C130),\"\"),\"\")","v":""}]
[null,null,"",{"$f":"IF(C131<>\"\",CONCATENATE(C131,\"-\",COUNTIF($C$4:C131,C131),\"\"),\"\")","v":""}]
[null,null,"",{"$f":"IF(C132<>\"\",CONCATENATE(C132,\"-\",COUNTIF($C$4:C132,C132),\"\"),\"\")","v":""}]
[null,null,"",{"$f":"IF(C133<>\"\",CONCATENATE(C133,\"-\",COUNTIF($C$4:C133,C133),\"\"),\"\")","v":""}]
[null,null,"",{"$f":"IF(C134<>\"\",CONCATENATE(C134,\"-\",COUNTIF($C$4:C134,C134),\"\"),\"\")","v":""}]
[null,null,"",{"$f":"IF(C135<>\"\",CONCATENATE(C135,\"-\",COUNTIF($C$4:C135,C135),\"\"),\"\")","v":""}]
[null,null,"",{"$f":"IF(C136<>\"\",CONCATENATE(C136,\"-\",COUNTIF($C$4:C136,C136),\"\"),\"\")","v":""}]
[null,null,"",{"$f":"IF(C137<>\"\",CONCATENATE(C137,\"-\",COUNTIF($C$4:C137,C137),\"\"),\"\")","v":""}]
[null,null,"",{"$f":"IF(C138<>\"\",CONCATENATE(C138,\"-\",COUNTIF($C$4:C138,C138),\"\"),\"\")","v":""}]
[null,null,"",{"$f":"IF(C139<>\"\",CONCATENATE(C139,\"-\",COUNTIF($C$4:C139,C139),\"\"),\"\")","v":""}]
[null,null,"",{"$f":"IF(C140<>\"\",CONCATENATE(C140,\"-\",COUNTIF($C$4:C140,C140),\"\"),\"\")","v":""}]
[null,null,"",{"$f":"IF(C141<>\"\",CONCATENATE(C141,\"-\",COUNTIF($C$4:C141,C141),\"\"),\"\")","v":""}]
[null,null,"",{"$f":"IF(C142<>\"\",CONCATENATE(C142,\"-\",COUNTIF($C$4:C142,C142),\"\"),\"\")","v":""}]
[null,null,"",{"$f":"IF(C143<>\"\",CONCATENATE(C143,\"-\",COUNTIF($C$4:C143,C143),\"\"),\"\")","v":""}]
[null,null,"",{"$f":"IF(C144<>\"\",CONCATENATE(C144,\"-\",COUNTIF($C$4:C144,C144),\"\"),\"\")","v":""}]
[null,null,"",{"$f":"IF(C145<>\"\",CONCATENATE(C145,\"-\",COUNTIF($C$4:C145,C145),\"\"),\"\")","v":""}]
[null,null,"",{"$f":"IF(C146<>\"\",CONCATENATE(C146,\"-\",COUNTIF($C$4:C146,C146),\"\"),\"\")","v":""}]
[null,null,"",{"$f":"IF(C147<>\"\",CONCATENATE(C147,\"-\",COUNTIF($C$4:C147,C147),\"\"),\"\")","v":""}]
[null,null,"",{"$f":"IF(C148<>\"\",CONCATENATE(C148,\"-\",COUNTIF($C$4:C148,C148),\"\"),\"\")","v":""}]
[null,null,"",{"$f":"IF(C149<>\"\",CONCATENATE(C149,\"-\",COUNTIF($C$4:C149,C149),\"\"),\"\")","v":""}]
[null,null,"",{"$f":"IF(C150<>\"\",CONCATENATE(C150,\"-\",COUNTIF($C$4:C150,C150),\"\"),\"\")","v":""}]
[null,null,"",{"$f":"IF(C151<>\"\",CONCATENATE(C151,\"-\",COUNTIF($C$4:C151,C151),\"\"),\"\")","v":""}]

{"sheet":"Voorblad","index":5,"n_rows":14,"n_cols":3,"rows_kept":14,"merged":[[0,0,0,2],[2,0,2,2],[5,1,5,2],[6,1,6,2],[7,1,7,2],[8,1,8,2],[9,1,9,2],[11,1,11,2],[13,1,13,2]]}
["Beoordelingsformulier praktijkexamen"]
[]
["Algemene informatie"]
[]
["Code beoordelingsformulier en vaststellingsdatum",{"$f":"KerntakenEnWerkprocessen!B4","v":"BF_OMSS-BACS-LIHSS-MCS_BS22_B1-K1_1"},"2022-03-10"]
["Examenvorm",{"$f":"KerntakenEnWerkprocessen!C6","v":"Praktijkexamen - examen in een gesimuleerde omgeving of in de beroepspraktijk"}]
["Examennaam"]
["Examencode",{"$f":"KerntakenEnWerkprocessen!C7","v":"OMSS-BACS-LIHSS-MCS _BS22_B1-K1_1"}]
["Profiel",{"$f":"KerntakenEnWerkprocessen!B9","v":"P3: Office & Management Support Specialist, niveau 4\nP4: Business Administration & Control Specialist, niveau 4\nP5: Legal, Insurance & HR Services Specialist, niveau 4\nP6: Marketing & Communication Specialist, niveau 4"}]
["Kwalificatiedossier",{"$f":"KerntakenEnWerkprocessen!B8","v":"Business Services"}]
["Cohort en crebocode",{"$f":"KerntakenEnWerkprocessen!C8","v":"2022 en verder"},{"$f":"KerntakenEnWerkprocessen!C9","v":"25728/25725/25726/25727"}]
["Kerntaak",{"$f":"KerntakenEnWerkprocessen!C5","v":"Voert taken uit binnen de zakelijke dienstverlening"}]
[]
["Werkprocessen",{"$f":"KerntakenEnWerkprocessen!F2","v":"B1-K1-W1 Treedt op als aanspreekpunt voor klanten\nB1-K1-W2 Verzorgt zakelijke communicatie\nB1-K1-W3 Verwerkt gegevens\nB1-K1-W4 Werkt aan producten/opdrachten binnen geld-, goederen- en informatiebeweging\n \n \n \n \n \n \n \n \n \n \n \n"}]

{"sheet":"B1-K1-W1","index":6,"n_rows":70,"n_cols":15,"rows_kept":70,"merged":[[9,1,9,6],[10,1,10,6],[12,1,12,6],[20,1,20,6],[30,1,30,6],[55,1,55,6],[56,1,56,6],[64,1,64,6],[68,2,68,3],[69,2,69,3]]}
["Werkproces:","B1-K1-W1",{"$f":"VLOOKUP(B1,werkprocessen,2,FALSE)","v":"Treedt op als aanspreekpunt voor klanten"}]
["Eerste opdracht:",{"$f":"VLOOKUP(B1,KerntakenEnWerkprocessen!B13:E27,3,FALSE)","v":1}]
["Laatste opdracht:",{"$f":"VLOOKUP(B1,KerntakenEnWerkprocessen!B13:E27,4,FALSE)","v":1}]
["PuntentotaalMax",{"$f":"SUM(N:N)","v":18},"Invullen gestart:",{"$f":"IF(SUM(O:O)>0,TRUE,FALSE)","v":false}]
["PuntentotaalBehaald",{"$f":"SUM(M:M)","v":0}]
["#Ant. Mog. <=1",{"$f":"COUNTIF(N:N,1)","v":0}]
["#Ant. Mog. 2-3",{"$f":"COUNTIF(N:N,2)+COUNTIF(N:N,3)","v":6}]
["Cesuur",{"$f":"0.5*B4","v":9}]
[]
[null,{"$f":"CONCATENATE(kerntaakCode,\": \",kerntaakNaam)","v":"B1-K1: Voert taken uit binnen de zakelijke dienstverlening"}]
[null,{"$f":"CONCATENATE(VLOOKUP(B1,werkprocessen,1,FALSE),\": \",C1)","v":"B1-K1-W1: Treedt op als aanspreekpunt voor klanten"}]
[]
[null,"Persoonsinformatie"]
[null,"Datum"]
[null,"Kandidaat"]
[null,"Studentnummer"]
[null,"Klas"]
[null,"Beoordelaar 1"]
[null,"Beoordelaar 2"]
[]
[null,"Beoordeling opdracht 1"]
["Opdracht:",1,null,"OpdrachtId:","B1-K1-W1-1",null,"Aantal criteria:",{"$f":"COUNTIF(Beheersingsniveaus!$C$4:$C$154,$E22)","v":6}]
["CriteriumId","Taak","Criterium",0,1,2,3,"Cruciaal","Cb0","Cb1","Cb2","Cb3","PuntentotaalBehaald","PuntentotaalMax","CheckboxenIngevuld"]
["B1-K1-W1-1-1",{"$f":"VLOOKUP($A24,Beheersingsniveaus!$D$4:$K$154,2,FALSE)","v":"T1, T2, T4, T5"},{"$f":"CONCATENATE(VLOOKUP($A24,Beheersingsniveaus!$D$4:$K$154,3,FALSE),IF($H24=ja,\"*\",\"\"))","v":"Klantvriendelijk-heid"},{"$f":"VLOOKUP($A24,Beheersingsniveaus!$D$4:$K$154,4,FALSE)","v":"De kandidaat heeft de klant/bezoeker niet vriendelijk en correct te woord gestaan."},{"$f":"VLOOKUP($A24,Beheersingsniveaus!$D$4:$K$154,5,FALSE)","v":"De kandidaat heeft de klant/bezoeker enigszins vriendelijk en correct te woord gestaan."},{"$f":"VLOOKUP($A24,Beheersingsniveaus!$D$4:$K$154,6,FALSE)","v":"De kandidaat heeft de klant/bezoeker grotendeels vriendelijk en correct te woord gestaan."},{"$f":"VLOOKUP($A24,Beheersingsniveaus!$D$4:$K$154,7,FALSE)","v":"De kandidaat heeft de klant/bezoeker volledig vriendelijk en correct te woord gestaan."},{"$f":"VLOOKUP($A24,Beheersingsniveaus!$D$4:$K$154,8,FALSE)","v":0},{"$nulls":4},{"$f":"IF(L24=TRUE,3,IF(K24=TRUE,2,IF(J24=TRUE,1,IF(I24=TRUE,0,0))))","v":0},{"$f":"(4-COUNTBLANK(D24:G24))-1","v":3},{"$f":"COUNTA(I24:L24)","v":0}]
["B1-K1-W1-1-2",{"$f":"VLOOKUP($A25,Beheersingsniveaus!$D$4:$K$154,2,FALSE)","v":"T2"},{"$f":"CONCATENATE(VLOOKUP($A25,Beheersingsniveaus!$D$4:$K$154,3,FALSE),IF($H25=ja,\"*\",\"\"))","v":"Klantvraag of klacht achterhalen"},{"$f":"VLOOKUP($A25,Beheersingsniveaus!$D$4:$K$154,4,FALSE)","v":"De klantgegevens en klantvraag of klacht zijn niet in kaart gebracht."},{"$f":"VLOOKUP($A25,Beheersingsniveaus!$D$4:$K$154,5,FALSE)","v":"De klantgegevens en klantvraag of klacht zijn enigszins in kaart gebracht."},{"$f":"VLOOKUP($A25,Beheersingsniveaus!$D$4:$K$154,6,FALSE)","v":"De klantgegevens en klantvraag of klacht zijn grotendeels in kaart gebracht."},{"$f":"VLOOKUP($A25,Beheersingsniveaus!$D$4:$K$154,7,FALSE)","v":"De klantgegevens en klantvraag of klacht zijn volledig in kaart gebracht."},{"$f":"VLOOKUP($A25,Beheersingsniveaus!$D$4:$K$154,8,FALSE)","v":0},{"$nulls":4},0,3,0]
["B1-K1-W1-1-3",{"$f":"VLOOKUP($A26,Beheersingsniveaus!$D$4:$K$154,2,FALSE)","v":"T3, T4"},{"$f":"CONCATENATE(VLOOKUP($A26,Beheersingsniveaus!$D$4:$K$154,3,FALSE),IF($H26=ja,\"*\",\"\"))","v":"Bevoegdheden en procedure"},{"$f":"VLOOKUP($A26,Beheersingsniveaus!$D$4:$K$154,4,FALSE)","v":"De kandidaat heeft niet overeenkomstig zijn bevoegdheden of de procedure gehandeld."},{"$f":"VLOOKUP($A26,Beheersingsniveaus!$D$4:$K$154,5,FALSE)","v":"De kandidaat heeft enigszins overeenkomstig zijn bevoegdheden en de procedure gehandeld."},{"$f":"VLOOKUP($A26,Beheersingsniveaus!$D$4:$K$154,6,FALSE)","v":"De kandidaat heeft grotendeels overeenkomstig zijn bevoegdheden en de procedure gehandeld."},{"$f":"VLOOKUP($A26,Beheersingsniveaus!$D$4:$K$154,7,FALSE)","v":"De kandidaat heeft volledig overeenkomstig zijn bevoegdheden en de procedure gehandeld."},{"$f":"VLOOKUP($A26,Beheersingsniveaus!$D$4:$K$154,8,FALSE)","v":0},{"$nulls":4},0,3,0]
["B1-K1-W1-1-4",{"$f":"VLOOKUP($A27,Beheersingsniveaus!$D$4:$K$154,2,FALSE)","v":"T3, T4"},{"$f":"CONCATENATE(VLOOKUP($A27,Beheersingsniveaus!$D$4:$K$154,3,FALSE),IF($H27=ja,\"*\",\"\"))","v":"Informeren en doorverwijzen"},{"$f":"VLOOKUP($A27,Beheersingsniveaus!$D$4:$K$154,4,FALSE)","v":"De bezoeker/klant is onjuist of op niet begrijpelijke wijze geïnformeerd, geadviseerd of doorverwezen. "},{"$f":"VLOOKUP($A27,Beheersingsniveaus!$D$4:$K$154,5,FALSE)","v":"De bezoeker/klant is enigszins juist en op enigszins begrijpelijke wijze geïnformeerd, geadviseerd of doorverwezen."},{"$f":"VLOOKUP($A27,Beheersingsniveaus!$D$4:$K$154,6,FALSE)","v":"De bezoeker/klant is grotendeels juist en op grotendeels begrijpelijke wijze geïnformeerd, geadviseerd of doorverwezen."},{"$f":"VLOOKUP($A27,Beheersingsniveaus!$D$4:$K$154,7,FALSE)","v":"De bezoeker/klant is volledig juist en op volledig begrijpelijke wijze geïnformeerd, geadviseerd of doorverwezen."},{"$f":"VLOOKUP($A27,Beheersingsniveaus!$D$4:$K$154,8,FALSE)","v":0},{"$nulls":4},0,3,0]
["B1-K1-W1-1-5",{"$f":"VLOOKUP($A28,Beheersingsniveaus!$D$4:$K$154,2,FALSE)","v":"T5"},{"$f":"CONCATENATE(VLOOKUP($A28,Beheersingsniveaus!$D$4:$K$154,3,FALSE),IF($H28=ja,\"*\",\"\"))","v":"Vastleggen"},{"$f":"VLOOKUP($A28,Beheersingsniveaus!$D$4:$K$154,4,FALSE)","v":"Het klantcontact is onjuist vastgelegd."},{"$f":"VLOOKUP($A28,Beheersingsniveaus!$D$4:$K$154,5,FALSE)","v":"Het klantcontact is enigszins juist vastgelegd."},{"$f":"VLOOKUP($A28,Beheersingsniveaus!$D$4:$K$154,6,FALSE)","v":"Het klantcontact is grotendeels juist vastgelegd."},{"$f":"VLOOKUP($A28,Beheersingsniveaus!$D$4:$K$154,7,FALSE)","v":"Het klantcontact is volledig juist vastgelegd."},{"$f":"VLOOKUP($A28,Beheersingsniveaus!$D$4:$K$154,8,FALSE)","v":0},{"$nulls":4},0,3,0]
["B1-K1-W1-1-6",{"$f":"VLOOKUP($A29,Beheersingsniveaus!$D$4:$K$154,2,FALSE)","v":"T5"},{"$f":"CONCATENATE(VLOOKUP($A29,Beheersingsniveaus!$D$4:$K$154,3,FALSE),IF($H29=ja,\"*\",\"\"))","v":"Klantrelatie"},{"$f":"VLOOKUP($A29,Beheersingsniveaus!$D$4:$K$154,4,FALSE)","v":"De klantrelatie is niet opgebouwd of onderhouden."},{"$f":"VLOOKUP($A29,Beheersingsniveaus!$D$4:$K$154,5,FALSE)","v":"De klantrelatie is enigszins opgebouwd of onderhouden."},{"$f":"VLOOKUP($A29,Beheersingsniveaus!$D$4:$K$154,6,FALSE)","v":"De klantrelatie is grotendeels opgebouwd of onderhouden."},{"$f":"VLOOKUP($A29,Beheersingsniveaus!$D$4:$K$154,7,FALSE)","v":"De klantrelatie is volledig opgebouwd of onderhouden."},{"$f":"VLOOKUP($A29,Beheersingsniveaus!$D$4:$K$154,8,FALSE)","v":0},{"$nulls":4},0,3,0]
[]
[null,"Beslissing B1-K1-W1"]
[null,"Cijfertabel"]
[null,"Punten","Cijfer","Behaald"]
[null,0,{"$f":"ROUNDUP(IF(B34<$B$8,4.5/$B$8*B34+1,4.5/($B$4-$B$8)*(B34-$B$8)+5.5),1)","v":{"v":1,"d":"1.0"}},{"$f":"IF($B34=$B$5,\"X\",\"\")","v":"X"}]
[null,1,1.5,""]
[null,2,{"v":2,"d":"2.0"},""]
[null,3,2.5,""]
[null,4,{"v":3,"d":"3.0"},""]
[null,5,3.5,""]
[null,6,{"v":4,"d":"4.0"},""]
[null,7,4.5,""]
[null,8,{"v":5,"d":"5.0"},""]
[null,9,5.5,""]
[null,10,{"v":6,"d":"6.0"},""]
[null,11,6.5,""]
[null,12,{"v":7,"d":"7.0"},""]
[null,13,7.5,""]
[null,14,{"v":8,"d":"8.0"},""]
[null,15,8.5,""]
[null,16,{"v":9,"d":"9.0"},""]
[null,17,9.5,""]
[null,18,{"v":10,"d":"10.0"},""]
[]
[null,"Motivatie"]
[null,"Motiveer de beslissing."]
[null,"Doe dit volgens richtlijnen van de school. Het is raadzaam om in elk geval een onvoldoende te motiveren.\nBij de motivering kan gebruikgemaakt worden van de beschrijvingen in de beoordelingstabel."]
[]
[]
[null,"Authenticiteit"]
[null,"(Alleen invullen bij examenportfolio)"]
[null,"Het ingeleverde werk is authentiek (eigen werk)."]
[]
[]
[null,"Licht zo nodig toe."]
[]
[]
[null,"Handtekening"]
[null,"Zet uw handtekening."]
[null,"Beoordelaar 1"]
[null,"Beoordelaar 2"]

{"sheet":"B1-K1-W2","index":7,"n_rows":64,"n_cols":15,"rows_kept":64,"merged":[[9,1,9,6],[10,1,10,6],[12,1,12,6],[20,1,20,6],[29,1,29,6],[49,1,49,6],[50,1,50,6],[58,1,58,6],[62,2,62,3],[63,2,63,3]]}
["Werkproces:","B1-K1-W2",{"$f":"VLOOKUP(B1,werkprocessen,2,FALSE)","v":"Verzorgt zakelijke communicatie"}]
["Eerste opdracht:",{"$f":"VLOOKUP(B1,KerntakenEnWerkprocessen!B13:E27,3,FALSE)","v":2}]
["Laatste opdracht:",{"$f":"VLOOKUP(B1,KerntakenEnWerkprocessen!B13:E27,4,FALSE)","v":2}]
["PuntentotaalMax",{"$f":"SUM(N:N)","v":13},"Invullen gestart:",{"$f":"IF(SUM(O:O)>0,TRUE,FALSE)","v":false}]
["PuntentotaalBehaald",{"$f":"SUM(M:M)","v":0}]
["#Ant. Mog. <=1",{"$f":"COUNTIF(N:N,1)","v":1}]
["#Ant. Mog. 2-3",{"$f":"COUNTIF(N:N,2)+COUNTIF(N:N,3)","v":4}]
["Cesuur",{"$f":"0.5*B4","v":6.5}]
[]
[null,{"$f":"CONCATENATE(kerntaakCode,\": \",kerntaakNaam)","v":"B1-K1: Voert taken uit binnen de zakelijke dienstverlening"}]
[null,{"$f":"CONCATENATE(VLOOKUP(B1,werkprocessen,1,FALSE),\": \",C1)","v":"B1-K1-W2: Verzorgt zakelijke communicatie"}]
[]
[null,"Persoonsinformatie"]
[null,"Datum"]
[null,"Kandidaat"]
[null,"Studentnummer"]
[null,"Klas"]
[null,"Beoordelaar 1"]
[null,"Beoordelaar 2"]
[]
[null,"Beoordeling opdracht 2"]
["Opdracht:",2,null,"OpdrachtId:","B1-K1-W2-2",null,"Aantal criteria:",{"$f":"COUNTIF(Beheersingsniveaus!$C$4:$C$154,$E22)","v":5}]
["CriteriumId","Taak","Criterium",0,1,2,3,"Cruciaal","Cb0","Cb1","Cb2","Cb3","PuntentotaalBehaald","PuntentotaalMax","CheckboxenIngevuld"]
["B1-K1-W2-2-1",{"$f":"VLOOKUP($A24,Beheersingsniveaus!$D$4:$K$154,2,FALSE)","v":"T1, T2"},{"$f":"CONCATENATE(VLOOKUP($A24,Beheersingsniveaus!$D$4:$K$154,3,FALSE),IF($H24=ja,\"*\",\"\"))","v":"Gegevens verzamelen en controleren "},{"$f":"VLOOKUP($A24,Beheersingsniveaus!$D$4:$K$154,4,FALSE)","v":"De benodigde gegevens zijn onjuist of niet volledig verzameld of niet gecontroleerd."},{"$f":"VLOOKUP($A24,Beheersingsniveaus!$D$4:$K$154,5,FALSE)","v":"De benodigde gegevens zijn enigszins juist en enigszins volledig verzameld en gecontroleerd. "},{"$f":"VLOOKUP($A24,Beheersingsniveaus!$D$4:$K$154,6,FALSE)","v":"De benodigde gegevens zijn grotendeels juist en grotendeels volledig verzameld en gecontroleerd."},{"$f":"VLOOKUP($A24,Beheersingsniveaus!$D$4:$K$154,7,FALSE)","v":"De benodigde gegevens zijn volledig juist en volledig verzameld en gecontroleerd."},{"$f":"VLOOKUP($A24,Beheersingsniveaus!$D$4:$K$154,8,FALSE)","v":0},{"$nulls":4},{"$f":"IF(L24=TRUE,3,IF(K24=TRUE,2,IF(J24=TRUE,1,IF(I24=TRUE,0,0))))","v":0},{"$f":"(4-COUNTBLANK(D24:G24))-1","v":3},{"$f":"COUNTA(I24:L24)","v":0}]
["B1-K1-W2-2-2",{"$f":"VLOOKUP($A25,Beheersingsniveaus!$D$4:$K$154,2,FALSE)","v":"T3"},{"$f":"CONCATENATE(VLOOKUP($A25,Beheersingsniveaus!$D$4:$K$154,3,FALSE),IF($H25=ja,\"*\",\"\"))","v":"Inhoud"},{"$f":"VLOOKUP($A25,Beheersingsniveaus!$D$4:$K$154,4,FALSE)","v":"De inhoud van het bericht is onjuist overgebracht."},{"$f":"VLOOKUP($A25,Beheersingsniveaus!$D$4:$K$154,5,FALSE)","v":"De inhoud van het bericht is enigszins juist overgebracht."},{"$f":"VLOOKUP($A25,Beheersingsniveaus!$D$4:$K$154,6,FALSE)","v":"De inhoud van het bericht is grotendeels juist overgebracht."},{"$f":"VLOOKUP($A25,Beheersingsniveaus!$D$4:$K$154,7,FALSE)","v":"De inhoud van het bericht is volledig juist overgebracht."},{"$f":"VLOOKUP($A25,Beheersingsniveaus!$D$4:$K$154,8,FALSE)","v":0},{"$nulls":4},{"$f":"IF(L25=TRUE,3,IF(K25=TRUE,2,IF(J25=TRUE,1,IF(I25=TRUE,0,0))))","v":0},{"$f":"(4-COUNTBLANK(D25:G25))-1","v":3},{"$f":"COUNTA(I25:L25)","v":0}]
["B1-K1-W2-2-3",{"$f":"VLOOKUP($A26,Beheersingsniveaus!$D$4:$K$154,2,FALSE)","v":"T3"},{"$f":"CONCATENATE(VLOOKUP($A26,Beheersingsniveaus!$D$4:$K$154,3,FALSE),IF($H26=ja,\"*\",\"\"))","v":"Communicatie"},{"$f":"VLOOKUP($A26,Beheersingsniveaus!$D$4:$K$154,4,FALSE)","v":"De communicatie is niet afgestemd op de ontvanger(s)."},{"$f":"VLOOKUP($A26,Beheersingsniveaus!$D$4:$K$154,5,FALSE)","v":"De communicatie is enigszins afgestemd op de ontvanger(s). "},{"$f":"VLOOKUP($A26,Beheersingsniveaus!$D$4:$K$154,6,FALSE)","v":"De communicatie is grotendeels afgestemd op de ontvanger(s)."},{"$f":"VLOOKUP($A26,Beheersingsniveaus!$D$4:$K$154,7,FALSE)","v":"De communicatie is volledig afgestemd op de ontvanger(s)."},{"$f":"VLOOKUP($A26,Beheersingsniveaus!$D$4:$K$154,8,FALSE)","v":0},{"$nulls":4},{"$f":"IF(L26=TRUE,3,IF(K26=TRUE,2,IF(J26=TRUE,1,IF(I26=TRUE,0,0))))","v":0},{"$f":"(4-COUNTBLANK(D26:G26))-1","v":3},{"$f":"COUNTA(I26:L26)","v":0}]
["B1-K1-W2-2-4",{"$f":"VLOOKUP($A27,Beheersingsniveaus!$D$4:$K$154,2,FALSE)","v":"T3"},{"$f":"CONCATENATE(VLOOKUP($A27,Beheersingsniveaus!$D$4:$K$154,3,FALSE),IF($H27=ja,\"*\",\"\"))","v":"Taalgebruik "},{"$f":"VLOOKUP($A27,Beheersingsniveaus!$D$4:$K$154,4,FALSE)","v":"Het taalgebruik is niet correct."},{"$f":"VLOOKUP($A27,Beheersingsniveaus!$D$4:$K$154,5,FALSE)","v":"Het taalgebruik is enigszins correct."},{"$f":"VLOOKUP($A27,Beheersingsniveaus!$D$4:$K$154,6,FALSE)","v":"Het taalgebruik is grotendeels correct."},{"$f":"VLOOKUP($A27,Beheersingsniveaus!$D$4:$K$154,7,FALSE)","v":"Het taalgebruik is volledig correct."},{"$f":"VLOOKUP($A27,Beheersingsniveaus!$D$4:$K$154,8,FALSE)","v":0},{"$nulls":4},{"$f":"IF(L27=TRUE,3,IF(K27=TRUE,2,IF(J27=TRUE,1,IF(I27=TRUE,0,0))))","v":0},{"$f":"(4-COUNTBLANK(D27:G27))-1","v":3},{"$f":"COUNTA(I27:L27)","v":0}]
["B1-K1-W2-2-5",{"$f":"VLOOKUP($A28,Beheersingsniveaus!$D$4:$K$154,2,FALSE)","v":"T4"},{"$f":"CONCATENATE(VLOOKUP($A28,Beheersingsniveaus!$D$4:$K$154,3,FALSE),IF($H28=ja,\"*\",\"\"))","v":"Voortgang en afhandeling"},{"$f":"VLOOKUP($A28,Beheersingsniveaus!$D$4:$K$154,4,FALSE)","v":"De voortgang en afhandeling van de correspondentie is niet of niet juist bewaakt."},{"$f":"VLOOKUP($A28,Beheersingsniveaus!$D$4:$K$154,5,FALSE)","v":"De voortgang en afhandeling van de correspondentie is juist bewaakt."},null,null,{"$f":"VLOOKUP($A28,Beheersingsniveaus!$D$4:$K$154,8,FALSE)","v":0},{"$nulls":4},{"$f":"IF(L28=TRUE,3,IF(K28=TRUE,2,IF(J28=TRUE,1,IF(I28=TRUE,0,0))))","v":0},{"$f":"(4-COUNTBLANK(D28:G28))-1","v":1},{"$f":"COUNTA(I28:L28)","v":0}]
[]
[null,"Beslissing B1-K1-W2"]
[null,"Cijfertabel"]
[null,"Punten","Cijfer","Behaald"]
[null,0,{"$f":"ROUNDUP(IF(B33<$B$8,4.5/$B$8*B33+1,4.5/($B$4-$B$8)*(B33-$B$8)+5.5),1)","v":{"v":1,"d":"1.0"}},{"$f":"IF($B33=$B$5,\"X\",\"\")","v":"X"}]
[null,1,{"v":1.7000000000000002,"d":"1.7"},""]
[null,2,2.4,""]
[null,3,3.1,""]
[null,4,{"v":3.8000000000000003,"d":"3.8"},""]
[null,5,4.5,""]
[null,6,{"v":5.199999999999999,"d":"5.2"},""]
[null,7,{"v":5.8999999999999995,"d":"5.9"},""]
[null,8,6.6,""]
[null,9,7.3,""]
[null,10,{"v":8,"d":"8.0"},""]
[null,11,8.7,""]
[null,12,9.4,""]
[null,13,{"v":10,"d":"10.0"},""]
[]
[null,"Motivatie"]
[null,"Motiveer de beslissing."]
[null,"Doe dit volgens richtlijnen van de school. Het is raadzaam om in elk geval een onvoldoende te motiveren.\nBij de motivering kan gebruikgemaakt worden van de beschrijvingen in de beoordelingstabel."]
[]
[]
[null,"Authenticiteit"]
[null,"(Alleen invullen bij examenportfolio)"]
[null,"Het ingeleverde werk is authentiek (eigen werk)."]
[]
[]
[null,"Licht zo nodig toe."]
[]
[]
[null,"Handtekening"]
[null,"Zet uw handtekening."]
[null,"Beoordelaar 1"]
[null,"Beoordelaar 2"]

{"sheet":"B1-K1-W3","index":8,"n_rows":70,"n_cols":15,"rows_kept":70,"merged":[[9,1,9,6],[10,1,10,6],[12,1,12,6],[20,1,20,6],[32,1,32,6],[55,1,55,6],[56,1,56,6],[64,1,64,6],[68,2,68,3],[69,2,69,3]]}
["Werkproces:","B1-K1-W3",{"$f":"VLOOKUP(B1,werkprocessen,2,FALSE)","v":"Verwerkt gegevens"}]
["Eerste opdracht:",{"$f":"VLOOKUP(B1,KerntakenEnWerkprocessen!B13:E27,3,FALSE)","v":3}]
["Laatste opdracht:",{"$f":"VLOOKUP(B1,KerntakenEnWerkprocessen!B13:E27,4,FALSE)","v":3}]
["PuntentotaalMax",{"$f":"SUM(N:N)","v":16},"Invullen gestart:",{"$f":"IF(SUM(O:O)>0,TRUE,FALSE)","v":false}]
["PuntentotaalBehaald",{"$f":"SUM(M:M)","v":0}]
["#Ant. Mog. <=1",{"$f":"COUNTIF(N:N,1)","v":4}]
["#Ant. Mog. 2-3",{"$f":"COUNTIF(N:N,2)+COUNTIF(N:N,3)","v":4}]
["Cesuur",{"$f":"0.5*B4","v":8}]
[]
[null,{"$f":"CONCATENATE(kerntaakCode,\": \",kerntaakNaam)","v":"B1-K1: Voert taken uit binnen de zakelijke dienstverlening"}]
[null,{"$f":"CONCATENATE(VLOOKUP(B1,werkprocessen,1,FALSE),\": \",C1)","v":"B1-K1-W3: Verwerkt gegevens"}]
[]
[null,"Persoonsinformatie"]
[null,"Datum"]
[null,"Kandidaat"]
[null,"Studentnummer"]
[null,"Klas"]
[null,"Beoordelaar 1"]
[null,"Beoordelaar 2"]
[]
[null,"Beoordeling opdracht 3"]
["Opdracht:",3,null,"OpdrachtId:","B1-K1-W3-3",null,"Aantal criteria:",{"$f":"COUNTIF(Beheersingsniveaus!$C$4:$C$154,$E22)","v":8}]
["CriteriumId","Taak","Criterium",0,1,2,3,"Cruciaal","Cb0","Cb1","Cb2","Cb3","PuntentotaalBehaald","PuntentotaalMax","CheckboxenIngevuld"]
["B1-K1-W3-3-1",{"$f":"VLOOKUP($A24,Beheersingsniveaus!$D$4:$K$154,2,FALSE)","v":"T1"},{"$f":"CONCATENATE(VLOOKUP($A24,Beheersingsniveaus!$D$4:$K$154,3,FALSE),IF($H24=ja,\"*\",\"\"))","v":"Gegevens invoeren en/of wijzigen"},{"$f":"VLOOKUP($A24,Beheersingsniveaus!$D$4:$K$154,4,FALSE)","v":"De gegevens zijn onjuist ingevoerd en/of gewijzigd."},{"$f":"VLOOKUP($A24,Beheersingsniveaus!$D$4:$K$154,5,FALSE)","v":"De gegevens zijn volledig juist ingevoerd en/of gewijzigd."},null,null,{"$f":"VLOOKUP($A24,Beheersingsniveaus!$D$4:$K$154,8,FALSE)","v":0},{"$nulls":4},{"$f":"IF(L24=TRUE,3,IF(K24=TRUE,2,IF(J24=TRUE,1,IF(I24=TRUE,0,0))))","v":0},{"$f":"(4-COUNTBLANK(D24:G24))-1","v":1},{"$f":"COUNTA(I24:L24)","v":0}]
["B1-K1-W3-3-2",{"$f":"VLOOKUP($A25,Beheersingsniveaus!$D$4:$K$154,2,FALSE)","v":"T2"},{"$f":"CONCATENATE(VLOOKUP($A25,Beheersingsniveaus!$D$4:$K$154,3,FALSE),IF($H25=ja,\"*\",\"\"))","v":"Controle en rapportage"},{"$f":"VLOOKUP($A25,Beheersingsniveaus!$D$4:$K$154,4,FALSE)","v":"Controle en rapportage zijn niet juist."},{"$f":"VLOOKUP($A25,Beheersingsniveaus!$D$4:$K$154,5,FALSE)","v":"Controle en rapportage zijn enigszins juist."},{"$f":"VLOOKUP($A25,Beheersingsniveaus!$D$4:$K$154,6,FALSE)","v":"Controle en rapportage zijn grotendeels juist."},{"$f":"VLOOKUP($A25,Beheersingsniveaus!$D$4:$K$154,7,FALSE)","v":"Controle en rapportage zijn volledig juist."},{"$f":"VLOOKUP($A25,Beheersingsniveaus!$D$4:$K$154,8,FALSE)","v":0},{"$nulls":4},0,3,0]
["B1-K1-W3-3-3",{"$f":"VLOOKUP($A26,Beheersingsniveaus!$D$4:$K$154,2,FALSE)","v":"T3"},{"$f":"CONCATENATE(VLOOKUP($A26,Beheersingsniveaus!$D$4:$K$154,3,FALSE),IF($H26=ja,\"*\",\"\"))","v":"Invullen"},{"$f":"VLOOKUP($A26,Beheersingsniveaus!$D$4:$K$154,4,FALSE)","v":"De (standaard) documenten zijn niet juist ingevuld."},{"$f":"VLOOKUP($A26,Beheersingsniveaus!$D$4:$K$154,5,FALSE)","v":"De (standaard) documenten zijn juist ingevuld."},null,null,{"$f":"VLOOKUP($A26,Beheersingsniveaus!$D$4:$K$154,8,FALSE)","v":0},{"$nulls":4},0,1,0]
["B1-K1-W3-3-4",{"$f":"VLOOKUP($A27,Beheersingsniveaus!$D$4:$K$154,2,FALSE)","v":"T3"},{"$f":"CONCATENATE(VLOOKUP($A27,Beheersingsniveaus!$D$4:$K$154,3,FALSE),IF($H27=ja,\"*\",\"\"))","v":"Archiveren "},{"$f":"VLOOKUP($A27,Beheersingsniveaus!$D$4:$K$154,4,FALSE)","v":"De gebruikte documenten zijn niet op de juiste wijze gearchiveerd."},{"$f":"VLOOKUP($A27,Beheersingsniveaus!$D$4:$K$154,5,FALSE)","v":"De gebruikte documenten zijn op de juiste wijze gearchiveerd."},null,null,{"$f":"VLOOKUP($A27,Beheersingsniveaus!$D$4:$K$154,8,FALSE)","v":0},{"$nulls":4},0,1,0]
["B1-K1-W3-3-5",{"$f":"VLOOKUP($A28,Beheersingsniveaus!$D$4:$K$154,2,FALSE)","v":"T3"},{"$f":"CONCATENATE(VLOOKUP($A28,Beheersingsniveaus!$D$4:$K$154,3,FALSE),IF($H28=ja,\"*\",\"\"))","v":"Richtlijnen veiligheid en communicatie"},{"$f":"VLOOKUP($A28,Beheersingsniveaus!$D$4:$K$154,4,FALSE)","v":"Er is niet in overeenstemming met richtlijnen en wetgeving gehandeld. "},{"$f":"VLOOKUP($A28,Beheersingsniveaus!$D$4:$K$154,5,FALSE)","v":"Er is in overeenstemming met richtlijnen en wetgeving gehandeld."},null,null,{"$f":"VLOOKUP($A28,Beheersingsniveaus!$D$4:$K$154,8,FALSE)","v":0},{"$nulls":4},0,1,0]
["B1-K1-W3-3-6",{"$f":"VLOOKUP($A29,Beheersingsniveaus!$D$4:$K$154,2,FALSE)","v":"T4"},{"$f":"CONCATENATE(VLOOKUP($A29,Beheersingsniveaus!$D$4:$K$154,3,FALSE),IF($H29=ja,\"*\",\"\"))","v":"Management-informatie leveren "},{"$f":"VLOOKUP($A29,Beheersingsniveaus!$D$4:$K$154,4,FALSE)","v":"De rapportage voor het management bevat niet de gevraagde informatie."},{"$f":"VLOOKUP($A29,Beheersingsniveaus!$D$4:$K$154,5,FALSE)","v":"De rapportage voor het management bevat enigszins de gevraagde informatie."},{"$f":"VLOOKUP($A29,Beheersingsniveaus!$D$4:$K$154,6,FALSE)","v":"De rapportage voor het management bevat grotendeels de gevraagde informatie."},{"$f":"VLOOKUP($A29,Beheersingsniveaus!$D$4:$K$154,7,FALSE)","v":"De rapportage voor het management bevat volledig de gevraagde informatie."},{"$f":"VLOOKUP($A29,Beheersingsniveaus!$D$4:$K$154,8,FALSE)","v":0},{"$nulls":4},0,3,0]
["B1-K1-W3-3-7",{"$f":"VLOOKUP($A30,Beheersingsniveaus!$D$4:$K$154,2,FALSE)","v":"T5"},{"$f":"CONCATENATE(VLOOKUP($A30,Beheersingsniveaus!$D$4:$K$154,3,FALSE),IF($H30=ja,\"*\",\"\"))","v":"Analyseren gegevens "},{"$f":"VLOOKUP($A30,Beheersingsniveaus!$D$4:$K$154,4,FALSE)","v":"De gegevens zijn niet juist geanalyseerd"},{"$f":"VLOOKUP($A30,Beheersingsniveaus!$D$4:$K$154,5,FALSE)","v":"De gegevens zijn enigszins juist geanalyseerd"},{"$f":"VLOOKUP($A30,Beheersingsniveaus!$D$4:$K$154,6,FALSE)","v":"De gegevens zijn grotendeels juist geanalyseerd.  "},{"$f":"VLOOKUP($A30,Beheersingsniveaus!$D$4:$K$154,7,FALSE)","v":"De gegevens zijn volledig  juist geanalyseerd.  "},{"$f":"VLOOKUP($A30,Beheersingsniveaus!$D$4:$K$154,8,FALSE)","v":0},{"$nulls":4},0,3,0]
["B1-K1-W3-3-8",{"$f":"VLOOKUP($A31,Beheersingsniveaus!$D$4:$K$154,2,FALSE)","v":"T5"},{"$f":"CONCATENATE(VLOOKUP($A31,Beheersingsniveaus!$D$4:$K$154,3,FALSE),IF($H31=ja,\"*\",\"\"))","v":"Rapportage  "},{"$f":"VLOOKUP($A31,Beheersingsniveaus!$D$4:$K$154,4,FALSE)","v":"De opgestelde rapportage is niet juist."},{"$f":"VLOOKUP($A31,Beheersingsniveaus!$D$4:$K$154,5,FALSE)","v":"De opgestelde rapportage is enigszins juist."},{"$f":"VLOOKUP($A31,Beheersingsniveaus!$D$4:$K$154,6,FALSE)","v":"De opgestelde rapportage is grotendeels juist."},{"$f":"VLOOKUP($A31,Beheersingsniveaus!$D$4:$K$154,7,FALSE)","v":"De opgestelde rapportage is volledig juist."},{"$f":"VLOOKUP($A31,Beheersingsniveaus!$D$4:$K$154,8,FALSE)","v":0},{"$nulls":4},0,3,0]
[]
[null,"Beslissing B1-K1-W3"]
[null,"Cijfertabel"]
[null,"Punten","Cijfer","Behaald"]
[null,0,{"$f":"ROUNDUP(IF(B36<$B$8,4.5/$B$8*B36+1,4.5/($B$4-$B$8)*(B36-$B$8)+5.5),1)","v":{"v":1,"d":"1.0"}},{"$f":"IF($B36=$B$5,\"X\",\"\")","v":"X"}]
[null,1,1.6,""]
[null,2,2.2,""]
[null,3,2.7,""]
[null,4,{"v":3.3000000000000003,"d":"3.3"},""]
[null,5,3.9,""]
[null,6,{"v":4.3999999999999995,"d":"4.4"},""]
[null,7,{"v":5,"d":"5.0"},""]
[null,8,5.5,""]
[null,9,6.1,""]
[null,10,{"v":6.699999999999999,"d":"6.7"},""]
[null,11,{"v":7.199999999999999,"d":"7.2"},""]
[null,12,7.8,""]
[null,13,8.4,""]
[null,14,8.9,""]
[null,15,9.5,""]
[null,16,{"v":10,"d":"10.0"},""]
[]
[null,"Motivatie"]
[null,"Motiveer de beslissing."]
[null,"Doe dit volgens richtlijnen van de school. Het is raadzaam om in elk geval een onvoldoende te motiveren.\nBij de motivering kan gebruikgemaakt worden van de beschrijvingen in de beoordelingstabel."]
[]
[]
[null,"Authenticiteit"]
[null,"(Alleen invullen bij examenportfolio)"]
[null,"Het ingeleverde werk is authentiek (eigen werk)."]
[]
[]
[null,"Licht zo nodig toe."]
[]
[]
[null,"Handtekening"]
[null,"Zet uw handtekening."]
[null,"Beoordelaar 1"]
[null,"Beoordelaar 2"]

{"sheet":"B1-K1-W4","index":9,"n_rows":74,"n_cols":15,"rows_kept":74,"merged":[[9,1,9,6],[10,1,10,6],[12,1,12,6],[20,1,20,6],[31,1,31,6],[59,1,59,6],[60,1,60,6],[68,1,68,6],[72,2,72,3],[73,2,73,3]]}
["Werkproces:","B1-K1-W4",{"$f":"VLOOKUP(B1,werkprocessen,2,FALSE)","v":"Werkt aan producten/opdrachten binnen geld-, goederen- en informatiebeweging"}]
["Eerste opdracht:",{"$f":"VLOOKUP(B1,KerntakenEnWerkprocessen!B13:E27,3,FALSE)","v":4}]
["Laatste opdracht:",{"$f":"VLOOKUP(B1,KerntakenEnWerkprocessen!B13:E27,4,FALSE)","v":4}]
["PuntentotaalMax",{"$f":"SUM(N:N)","v":21},"Invullen gestart:",{"$f":"IF(SUM(O:O)>0,TRUE,FALSE)","v":false}]
["PuntentotaalBehaald",{"$f":"SUM(M:M)","v":0}]
["#Ant. Mog. <=1",{"$f":"COUNTIF(N:N,1)","v":0}]
["#Ant. Mog. 2-3",{"$f":"COUNTIF(N:N,2)+COUNTIF(N:N,3)","v":7}]
["Cesuur",{"$f":"0.5*B4","v":10.5}]
[]
[null,{"$f":"CONCATENATE(kerntaakCode,\": \",kerntaakNaam)","v":"B1-K1: Voert taken uit binnen de zakelijke dienstverlening"}]
[null,{"$f":"CONCATENATE(VLOOKUP(B1,werkprocessen,1,FALSE),\": \",C1)","v":"B1-K1-W4: Werkt aan producten/opdrachten binnen geld-, goederen- en informatiebeweging"}]
[]
[null,"Persoonsinformatie"]
[null,"Datum"]
[null,"Kandidaat"]
[null,"Studentnummer"]
[null,"Klas"]
[null,"Beoordelaar 1"]
[null,"Beoordelaar 2"]
[]
[null,"Beoordeling opdracht 4"]
["Opdracht:",4,null,"OpdrachtId:","B1-K1-W4-4",null,"Aantal criteria:",{"$f":"COUNTIF(Beheersingsniveaus!$C$4:$C$154,$E22)","v":7}]
["CriteriumId","Taak","Criterium",0,1,2,3,"Cruciaal","Cb0","Cb1","Cb2","Cb3","PuntentotaalBehaald","PuntentotaalMax","CheckboxenIngevuld"]
["B1-K1-W4-4-1",{"$f":"VLOOKUP($A24,Beheersingsniveaus!$D$4:$K$154,2,FALSE)","v":"T1,T2,T3,T4"},{"$f":"CONCATENATE(VLOOKUP($A24,Beheersingsniveaus!$D$4:$K$154,3,FALSE),IF($H24=ja,\"*\",\"\"))","v":"Samenwerking"},{"$f":"VLOOKUP($A24,Beheersingsniveaus!$D$4:$K$154,4,FALSE)","v":"Samenwerking met anderen ontbreekt."},{"$f":"VLOOKUP($A24,Beheersingsniveaus!$D$4:$K$154,5,FALSE)","v":"Samenwerking met anderen is minimaal."},{"$f":"VLOOKUP($A24,Beheersingsniveaus!$D$4:$K$154,6,FALSE)","v":"Samenwerking met anderen is voldoende."},{"$f":"VLOOKUP($A24,Beheersingsniveaus!$D$4:$K$154,7,FALSE)","v":"Samenwerking met anderen is optimaal."},{"$f":"VLOOKUP($A24,Beheersingsniveaus!$D$4:$K$154,8,FALSE)","v":0},{"$nulls":4},{"$f":"IF(L24=TRUE,3,IF(K24=TRUE,2,IF(J24=TRUE,1,IF(I24=TRUE,0,0))))","v":0},{"$f":"(4-COUNTBLANK(D24:G24))-1","v":3},{"$f":"COUNTA(I24:L24)","v":0}]
["B1-K1-W4-4-2",{"$f":"VLOOKUP($A25,Beheersingsniveaus!$D$4:$K$154,2,FALSE)","v":"T1"},{"$f":"CONCATENATE(VLOOKUP($A25,Beheersingsniveaus!$D$4:$K$154,3,FALSE),IF($H25=ja,\"*\",\"\"))","v":"Verzamelde informatie "},{"$f":"VLOOKUP($A25,Beheersingsniveaus!$D$4:$K$154,4,FALSE)","v":"Te weinig benodigde informatie is aanwezig\nen/of \nte weinig verzamelde informatie is relevant voor de opdracht."},{"$f":"VLOOKUP($A25,Beheersingsniveaus!$D$4:$K$154,5,FALSE)","v":"Bijna alle benodigde informatie is aanwezig.\n \nNiet alle verzamelde informatie is relevant voor de opdracht."},{"$f":"VLOOKUP($A25,Beheersingsniveaus!$D$4:$K$154,6,FALSE)","v":"Bijna alle benodigde informatie is aanwezig.\n\nAlle verzamelde informatie is relevant voor de opdracht."},{"$f":"VLOOKUP($A25,Beheersingsniveaus!$D$4:$K$154,7,FALSE)","v":"Alle benodigde informatie is aanwezig.\n \nAlle verzamelde informatie is relevant voor de opdracht."},{"$f":"VLOOKUP($A25,Beheersingsniveaus!$D$4:$K$154,8,FALSE)","v":0},{"$nulls":4},0,3,0]
["B1-K1-W4-4-3",{"$f":"VLOOKUP($A26,Beheersingsniveaus!$D$4:$K$154,2,FALSE)","v":"T2"},{"$f":"CONCATENATE(VLOOKUP($A26,Beheersingsniveaus!$D$4:$K$154,3,FALSE),IF($H26=ja,\"*\",\"\"))","v":"Inhoud operationeel plan "},{"$f":"VLOOKUP($A26,Beheersingsniveaus!$D$4:$K$154,4,FALSE)","v":"De inhoud van het operationeel plan heeft geen betrekking op de opdracht\nen/of \nis onvolledig en niet onderbouwd."},{"$f":"VLOOKUP($A26,Beheersingsniveaus!$D$4:$K$154,5,FALSE)","v":"De inhoud van het operationeel plan heeft betrekking op de opdracht \nen \nis deels volledig en onderbouwd."},{"$f":"VLOOKUP($A26,Beheersingsniveaus!$D$4:$K$154,6,FALSE)","v":"De inhoud van het operationeel plan heeft betrekking op de opdracht \nen \nis grotendeels volledig en onderbouwd."},{"$f":"VLOOKUP($A26,Beheersingsniveaus!$D$4:$K$154,7,FALSE)","v":"De inhoud van het operationeel plan heeft betrekking op de opdracht \nen \nis volledig en onderbouwd."},{"$f":"VLOOKUP($A26,Beheersingsniveaus!$D$4:$K$154,8,FALSE)","v":0},{"$nulls":4},0,3,0]
["B1-K1-W4-4-4",{"$f":"VLOOKUP($A27,Beheersingsniveaus!$D$4:$K$154,2,FALSE)","v":"T3"},{"$f":"CONCATENATE(VLOOKUP($A27,Beheersingsniveaus!$D$4:$K$154,3,FALSE),IF($H27=ja,\"*\",\"\"))","v":"Doelen"},{"$f":"VLOOKUP($A27,Beheersingsniveaus!$D$4:$K$154,4,FALSE)","v":"De doelen zijn onvoldoende geformuleerd."},{"$f":"VLOOKUP($A27,Beheersingsniveaus!$D$4:$K$154,5,FALSE)","v":"De doelen zijn enigszins juist\ngeformuleerd."},{"$f":"VLOOKUP($A27,Beheersingsniveaus!$D$4:$K$154,6,FALSE)","v":"De doelen zijn grotendeels juist geformuleerd."},{"$f":"VLOOKUP($A27,Beheersingsniveaus!$D$4:$K$154,7,FALSE)","v":"De doelen zijn volledig juist geformuleerd."},{"$f":"VLOOKUP($A27,Beheersingsniveaus!$D$4:$K$154,8,FALSE)","v":0},{"$nulls":4},0,3,0]
["B1-K1-W4-4-5",{"$f":"VLOOKUP($A28,Beheersingsniveaus!$D$4:$K$154,2,FALSE)","v":"T3"},{"$f":"CONCATENATE(VLOOKUP($A28,Beheersingsniveaus!$D$4:$K$154,3,FALSE),IF($H28=ja,\"*\",\"\"))","v":"Budgetteren"},{"$f":"VLOOKUP($A28,Beheersingsniveaus!$D$4:$K$154,4,FALSE)","v":"Het budget is niet conform de opdracht opgesteld."},{"$f":"VLOOKUP($A28,Beheersingsniveaus!$D$4:$K$154,5,FALSE)","v":"Het budget is enigszins conform de opdracht opgesteld."},{"$f":"VLOOKUP($A28,Beheersingsniveaus!$D$4:$K$154,6,FALSE)","v":"Het budget is grotendeels conform de opdracht opgesteld."},{"$f":"VLOOKUP($A28,Beheersingsniveaus!$D$4:$K$154,7,FALSE)","v":"Het budget is volledig conform de opdracht opgesteld."},{"$f":"VLOOKUP($A28,Beheersingsniveaus!$D$4:$K$154,8,FALSE)","v":0},{"$nulls":4},0,3,0]
["B1-K1-W4-4-6",{"$f":"VLOOKUP($A29,Beheersingsniveaus!$D$4:$K$154,2,FALSE)","v":"T4"},{"$f":"CONCATENATE(VLOOKUP($A29,Beheersingsniveaus!$D$4:$K$154,3,FALSE),IF($H29=ja,\"*\",\"\"))","v":"Presentatie "},{"$f":"VLOOKUP($A29,Beheersingsniveaus!$D$4:$K$154,4,FALSE)","v":"De presentatie is niet afgestemd op het doel en de doelgroep en is niet in correct Nederlands."},{"$f":"VLOOKUP($A29,Beheersingsniveaus!$D$4:$K$154,5,FALSE)","v":"De presentatie is enigszins afgestemd op het doel en de doelgroep en enigszins in correct Nederlands."},{"$f":"VLOOKUP($A29,Beheersingsniveaus!$D$4:$K$154,6,FALSE)","v":"De presentatie is grotendeels afgestemd op het doel en de doelgroep en grotendeels in correct Nederlands."},{"$f":"VLOOKUP($A29,Beheersingsniveaus!$D$4:$K$154,7,FALSE)","v":"De presentatie is volledig afgestemd op het doel en de doelgroep en volledig in correct Nederlands."},{"$f":"VLOOKUP($A29,Beheersingsniveaus!$D$4:$K$154,8,FALSE)","v":0},{"$nulls":4},0,3,0]
["B1-K1-W4-4-7",{"$f":"VLOOKUP($A30,Beheersingsniveaus!$D$4:$K$154,2,FALSE)","v":"T4"},{"$f":"CONCATENATE(VLOOKUP($A30,Beheersingsniveaus!$D$4:$K$154,3,FALSE),IF($H30=ja,\"*\",\"\"))","v":"Planning en organisatie "},{"$f":"VLOOKUP($A30,Beheersingsniveaus!$D$4:$K$154,4,FALSE)","v":"De planning en organisatie van werkzaamheden, overleggen en activiteiten is niet conform de opdracht\nen/of onnauwkeurig."},{"$f":"VLOOKUP($A30,Beheersingsniveaus!$D$4:$K$154,5,FALSE)","v":"De planning en organisatie van \nwerkzaamheden,\noverleggen en activiteiten is conform de opdracht en enigszins nauwkeurig. "},{"$f":"VLOOKUP($A30,Beheersingsniveaus!$D$4:$K$154,6,FALSE)","v":"De planning en organisatie van \nwerkzaamheden, overleggen en \nactiviteiten is conform opdracht en grotendeels nauwkeurig."},{"$f":"VLOOKUP($A30,Beheersingsniveaus!$D$4:$K$154,7,FALSE)","v":"De planning en organisatie van werkzaamheden, \noverleggen en activiteiten is conform opdracht en volledig nauwkeurig."},{"$f":"VLOOKUP($A30,Beheersingsniveaus!$D$4:$K$154,8,FALSE)","v":0},{"$nulls":4},0,3,0]
[]
[null,"Beslissing B1-K1-W4"]
[null,"Cijfertabel"]
[null,"Punten","Cijfer","Behaald"]
[null,0,{"$f":"ROUNDUP(IF(B35<$B$8,4.5/$B$8*B35+1,4.5/($B$4-$B$8)*(B35-$B$8)+5.5),1)","v":{"v":1,"d":"1.0"}},{"$f":"IF($B35=$B$5,\"X\",\"\")","v":"X"}]
[null,1,1.5,""]
[null,2,{"v":1.9000000000000001,"d":"1.9"},""]
[null,3,{"v":2.3000000000000003,"d":"2.3"},""]
[null,4,{"v":2.8000000000000003,"d":"2.8"},""]
[null,5,3.2,""]
[null,6,3.6,""]
[null,7,{"v":4,"d":"4.0"},""]
[null,8,4.5,""]
[null,9,{"v":4.8999999999999995,"d":"4.9"},""]
[null,10,5.3,""]
[null,11,5.8,""]
[null,12,{"v":6.199999999999999,"d":"6.2"},""]
[null,13,6.6,""]
[null,14,{"v":7,"d":"7.0"},""]
[null,15,7.5,""]
[null,16,{"v":7.8999999999999995,"d":"7.9"},""]
[null,17,{"v":8.299999999999999,"d":"8.3"},""]
[null,18,{"v":8.799999999999999,"d":"8.8"},""]
[null,19,9.2,""]
[null,20,9.6,""]
[null,21,{"v":10,"d":"10.0"},""]
[]
[null,"Motivatie"]
[null,"Motiveer de beslissing."]
[null,"Doe dit volgens richtlijnen van de school. Het is raadzaam om in elk geval een onvoldoende te motiveren.\nBij de motivering kan gebruikgemaakt worden van de beschrijvingen in de beoordelingstabel."]
[]
[]
[null,"Authenticiteit"]
[null,"(Alleen invullen bij examenportfolio)"]
[null,"Het ingeleverde werk is authentiek (eigen werk)."]
[]
[]
[null,"Licht zo nodig toe."]
[]
[]
[null,"Handtekening"]
[null,"Zet uw handtekening."]
[null,"Beoordelaar 1"]
[null,"Beoordelaar 2"]